Workbook

Sheet Project Details
R7: Junction Turning Count
C9: Project Number | F9: 4742-LON
C10: Project Name | F10: Fisher’s Lane Repeat
C11: Client | F11: Metis
C13: Site | F13: 1. South Parade/ Fishers Lane
C14: Survey Date | F14: 20/10/2020
C15: Survey Time | F15: 07:00-19:00
C17: Weather | F17: Dry
C19: Observations | F19: No incidents or observations during the survey period.
B25: Tracsis will retain all personal data relating to this project, including all video images, for a period of three months after receipt of this report and all other data files for one year.
B26: If you would like a copy of the personal data or wish for us to retain for a longer period, please do not hesitate to contact us.

Sheet Dashboard (hidden)
AL1: 0 | BB1: 1 | BC1: 1
AK2: ='Project Details'!F9&" "&'Project Details'!F10 -> 4742-LON Fisher’s Lane Repeat | AN2: 0
AK3: ='Project Details'!R7 -> Junction Turning Count
AH4: ='Project Details'!F14 -> 20/10/2020
Q7: Arm | V7: Location | AA7: Observations
Q9: A | R9: A409 South Parade (E) | X9: 51.49535
Q10: B | R10: Fisher's Lane | X10: -0.26043
Q11: C | R11: A409 South Parade (W)
Q18: Total Number of Vehicles per Interval
Y28: O-D Movement Matrix | AH28: Road Names
AF30: G
Q31: Percentage of Classed Vehicles
AC33: A | AD33: B | AE33: C
F34: D | G34: E | H34: F | I34: G | AB34: A | AC34: 9 | AD34: 259 | AE34: 3737
Y35: E | AB35: B | AC35: 297 | AD35: 0 | AE35: 245
Y36: F | AB36: C | AC36: 3519 | AD36: 324 | AE36: 17
Y37: G
B38: D
B39: E
B40: F
B41: G

Sheet Data (hidden)
A1: site | B1: x,y | C1: lat,lon | N1: time periods | S1: Class | T1: Colour | Y1: Counts for overview Flow diagram, origin and destination ( sheet2) | Z1: Site 1 | AA1: 0 | AB1: 0 | AC1: 0 | AD1: 0 | AE1: 0 | AF1: 0 | AG1: 0 | AH1: 0 | AS1: 07:00:00 | AT1: 07:00:00 | AU1: 1 | AV1: 1 | AW1: 1 | AY1: 1 | AZ1: 1 | BB1: 1 | BC1: 1 | BD1: ALL | BE1: counts for arm flow diagram, arm X- arm Y | BF1: A_A | BG1: A_B | BH1: A_C | BI1: B_A | BJ1: B_B | BK1: B_C | BL1: C_A | BM1: C_B | BN1: C_C
A2: Site 1 | B2: 640.0,640.0 | C2: 51.495349,-0.260427 | D2: A,78.231711068,A409 South Parade (E),452.57565750000003,286.102764375 | E2: B,181.27303002,Fisher's Lane,363.93424687500004,370.42020375 | F2: C,278.130102354,A409 South Parade (W),297.63335437499995,280.337469375 | N2: 07:00-19:00 | V2: Towards is first column | Z2: Site 2 | AA2: 0 | AB2: 0 | AC2: 0 | AD2: 0 | AE2: 0 | AF2: 0 | AG2: 0 | AH2: 0 | AI2: 0 | AJ2: 0 | AS2: 07:15:00 | AT2: 07:15:00 | AU2: 1 | AV2: 48 | AX2: Car | AY2: 1 | AZ2: 1 | BD2: A | BF2: 9 | BG2: 259 | BH2: 3737 | BI2: 297 | BJ2: 0 | BK2: 245 | BL2: 3519 | BM2: 324 | BN2: 17 | BO2: 0 | BP2: 0 | BQ2: 0 | BR2: 0 | BS2: 0 | BT2: 0 | BU2: 0 | BV2: 0 | BW2: 0 | BX2: 0 | BY2: 0 | BZ2: 0 | CA2: 0 | CB2: 0 | CC2: 0 | CD2: 0 | CE2: 0 | CF2: 0 | CG2: 0 | CH2: 0 | CI2: 0 | CJ2: 0 | CK2: 0 | CL2: 0 | CM2: 0 | CN2: 0 | CO2: 0 | CP2: 0 | CQ2: 0 | CR2: 0 | CS2: 0 | CT2: 0 | CU2: 0 | CV2: 0 | CW2: 0 | CX2: 0 | CY2: 0 | CZ2: 0 | DA2: 0 | DB2: 0 | DC2: 0 | DD2: 0 | DE2: 0 | DF2: 0 | DG2: 0 | DH2: 0 | DI2: 0 | DJ2: 0 | DK2: 0 | DL2: 0 | DM2: 0 | DN2: 0 | DO2: 0 | DP2: 0 | DQ2: 0 | DR2: 0 | DS2: 0 | DT2: 0 | DU2: 0 | DV2: 0 | DW2: 0 | DX2: 0 | DY2: 0 | DZ2: 0 | EA2: 0 | EB2: 0 | EC2: 0 | ED2: 0 | EE2: 0
N3: 15 | S3: CAR | V3: Away is second column | AS3: 07:30:00 | AT3: 07:30:00 | AX3: LGV | AY3: 1 | AZ3: 1 | BD3: B
N4: 4742-LON | V4: For each arm | AS4: 07:45:00 | AT4: 07:45:00 | AX4: OGV1 | AY4: 1 | AZ4: 1.5 | BD4: C
N5: Fisher’s Lane Repeat | S5: LGV | AS5: 08:00:00 | AT5: 08:00:00 | AX5: OGV2 | AY5: 1 | AZ5: 2.3
N6: 20/10/2020 | AS6: 08:15:00 | AT6: 08:15:00 | AX6: PSV | AY6: 1 | AZ6: 2
N7: 600 | O7: <--overview map size | S7: OGV1 | AS7: 08:30:00 | AT7: 08:30:00 | AX7: MC | AY7: 1 | AZ7: 0.4
N8: TRUE | AS8: 08:45:00 | AT8: 08:45:00 | AX8: PC | AY8: 1 | AZ8: 0.2
S9: OGV2 | AS9: 09:00:00 | AT9: 09:00:00 | AY9: 1 | AZ9: 2
AS10: 09:15:00 | AT10: 09:15:00 | AY10: 1
S11: PSV | AS11: 09:30:00 | AT11: 09:30:00 | AY11: 1
AS12: 09:45:00 | AT12: 09:45:00 | AY12: 1
S13: MCL | AS13: 10:00:00 | AT13: 10:00:00 | AY13: 1
AS14: 10:15:00 | AT14: 10:15:00 | AY14: 1
S15: PCL | AS15: 10:30:00 | AT15: 10:30:00 | AY15: 1
AS16: 10:45:00 | AT16: 10:45:00 | AY16: 1
S17: OGV | AS17: 11:00:00 | AT17: 11:00:00
AS18: 11:15:00 | AT18: 11:15:00
S19: MGV2 | AS19: 11:30:00 | AT19: 11:30:00
AS20: 11:45:00 | AT20: 11:45:00
S21: PC | AS21: 12:00:00 | AT21: 12:00:00
AS22: 12:15:00 | AT22: 12:15:00
S23: BUS | AS23: 12:30:00 | AT23: 12:30:00
AS24: 12:45:00 | AT24: 12:45:00
S25: MC | AS25: 13:00:00 | AT25: 13:00:00
AS26: 13:15:00 | AT26: 13:15:00
S27: HGV | AS27: 13:30:00 | AT27: 13:30:00
AS28: 13:45:00 | AT28: 13:45:00
S29: MGV | AS29: 14:00:00 | AT29: 14:00:00
AS30: 14:15:00 | AT30: 14:15:00
S31: LTAX | AS31: 14:30:00 | AT31: 14:30:00
AS32: 14:45:00 | AT32: 14:45:00
S33: CVN | AS33: 15:00:00 | AT33: 15:00:00
AS34: 15:15:00 | AT34: 15:15:00
S35: AGR | AS35: 15:30:00 | AT35: 15:30:00
AS36: 15:45:00 | AT36: 15:45:00
S37: OTH | AS37: 16:00:00 | AT37: 16:00:00
AS38: 16:15:00 | AT38: 16:15:00
S39: PCLRed | AS39: 16:30:00 | AT39: 16:30:00
AS40: 16:45:00 | AT40: 16:45:00
S41: R3 | AS41: 17:00:00 | AT41: 17:00:00
AS42: 17:15:00 | AT42: 17:15:00
S43: R4 | AS43: 17:30:00 | AT43: 17:30:00
AS44: 17:45:00 | AT44: 17:45:00
S45: A5 | AS45: 18:00:00 | AT45: 18:00:00
AS46: 18:15:00 | AT46: 18:15:00
S47: A6 | AS47: 18:30:00 | AT47: 18:30:00
AS48: 18:45:00 | AT48: 18:45:00
S49: PED | AS49: 19:00:00 | AT49: 19:00:00
S51: WCH
S53: MOB
S55: EQU
S57: PWC
S59: PWD
S61: PUSH
S63: ALLPED
S65: PCLBlue
Z80: a | AA80: v | AB80: b | AC80: n | AD80: m | AE80: m, | AF80: , | AG80: ,. | AH80: . | AI80: .
V81: 07:00:00 | W81: 07:15:00
V82: 07:15:00 | W82: 07:30:00
V83: 07:30:00 | W83: 07:45:00
V84: 07:45:00 | W84: 08:00:00
V85: 08:00:00 | W85: 08:15:00
V86: 08:15:00 | W86: 08:30:00
V87: 08:30:00 | W87: 08:45:00
V88: 08:45:00 | W88: 09:00:00
V89: 09:00:00 | W89: 09:15:00
V90: 09:15:00 | W90: 09:30:00
V91: 09:30:00 | W91: 09:45:00
V92: 09:45:00 | W92: 10:00:00
V93: 10:00:00 | W93: 10:15:00
V94: 10:15:00 | W94: 10:30:00
V95: 10:30:00 | W95: 10:45:00
V96: 10:45:00 | W96: 11:00:00
V97: 11:00:00 | W97: 11:15:00
V98: 11:15:00 | W98: 11:30:00
V99: 11:30:00 | W99: 11:45:00 | AA99: 07:00:00 | AB99: 07:15:00 | AC99: 07:30:00 | AD99: 07:45:00 | AE99: 08:00:00 | AF99: 08:15:00 | AG99: 08:30:00 | AH99: 08:45:00 | AI99: 09:00:00 | AJ99: 09:15:00 | AK99: 09:30:00 | AL99: 09:45:00 | AM99: 10:00:00 | AN99: 10:15:00 | AO99: 10:30:00 | AP99: 10:45:00 | AQ99: 11:00:00 | AR99: 11:15:00 | AS99: 11:30:00 | AT99: 11:45:00 | AU99: 12:00:00 | AV99: 12:15:00 | AW99: 12:30:00 | AX99: 12:45:00 | AY99: 13:00:00 | AZ99: 13:15:00 | BA99: 13:30:00 | BB99: 13:45:00 | BC99: 14:00:00 | BD99: 14:15:00 | BE99: 14:30:00 | BF99: 14:45:00 | BG99: 15:00:00 | BH99: 15:15:00 | BI99: 15:30:00 | BJ99: 15:45:00 | BK99: 16:00:00 | BL99: 16:15:00 | BM99: 16:30:00 | BN99: 16:45:00 | BO99: 17:00:00 | BP99: 17:15:00 | BQ99: 17:30:00 | BR99: 17:45:00 | BS99: 18:00:00 | BT99: 18:15:00 | BU99: 18:30:00 | BV99: 18:45:00
A100: ALL | B100: Site 1,640.0,640.0,A,458.0,-13.999999970197678,B,210.0,228.0,C,26.0,-22.0 | V100: 11:45:00 | W100: 12:00:00 | Y100: Counts for graph on dashboard, volume counts | Z100: Car | AA100: 74 | AB100: 82 | AC100: 96 | AD100: 106 | AE100: 116 | AF100: 125 | AG100: 141 | AH100: 135 | AI100: 133 | AJ100: 127 | AK100: 104 | AL100: 121 | AM100: 104 | AN100: 99 | AO100: 114 | AP100: 124 | AQ100: 110 | AR100: 94 | AS100: 103 | AT100: 123 | AU100: 107 | AV100: 113 | AW100: 114 | AX100: 125 | AY100: 132 | AZ100: 113 | BA100: 110 | BB100: 99 | BC100: 96 | BD100: 152 | BE100: 104 | BF100: 118 | BG100: 144 | BH100: 139 | BI100: 113 | BJ100: 132 | BK100: 134 | BL100: 124 | BM100: 117 | BN100: 126 | BO100: 152 | BP100: 132 | BQ100: 138 | BR100: 152 | BS100: 131 | BT100: 138 | BU100: 134 | BV100: 130
V101: 12:00:00 | W101: 12:15:00 | Z101: LGV | AA101: 19 | AB101: 22 | AC101: 35 | AD101: 38 | AE101: 20 | AF101: 23 | AG101: 27 | AH101: 29 | AI101: 26 | AJ101: 30 | AK101: 37 | AL101: 30 | AM101: 28 | AN101: 18 | AO101: 32 | AP101: 23 | AQ101: 32 | AR101: 26 | AS101: 36 | AT101: 26 | AU101: 29 | AV101: 26 | AW101: 22 | AX101: 27 | AY101: 22 | AZ101: 26 | BA101: 15 | BB101: 26 | BC101: 20 | BD101: 17 | BE101: 19 | BF101: 18 | BG101: 24 | BH101: 25 | BI101: 19 | BJ101: 20 | BK101: 26 | BL101: 21 | BM101: 20 | BN101: 18 | BO101: 22 | BP101: 15 | BQ101: 12 | BR101: 9 | BS101: 8 | BT101: 8 | BU101: 11 | BV101: 9
V102: 12:15:00 | W102: 12:30:00 | Z102: OGV1 | AA102: 0 | AB102: 1 | AC102: 2 | AD102: 5 | AE102: 3 | AF102: 1 | AG102: 5 | AH102: 4 | AI102: 7 | AJ102: 2 | AK102: 1 | AL102: 2 | AM102: 1 | AN102: 4 | AO102: 3 | AP102: 3 | AQ102: 0 | AR102: 0 | AS102: 1 | AT102: 4 | AU102: 4 | AV102: 1 | AW102: 5 | AX102: 1 | AY102: 3 | AZ102: 3 | BA102: 4 | BB102: 2 | BC102: 2 | BD102: 2 | BE102: 1 | BF102: 3 | BG102: 3 | BH102: 4 | BI102: 2 | BJ102: 1 | BK102: 2 | BL102: 6 | BM102: 0 | BN102: 2 | BO102: 0 | BP102: 2 | BQ102: 1 | BR102: 1 | BS102: 1 | BT102: 0 | BU102: 1 | BV102: 0
V103: 12:30:00 | W103: 12:45:00 | Z103: OGV2 | AA103: 0 | AB103: 0 | AC103: 0 | AD103: 0 | AE103: 0 | AF103: 0 | AG103: 0 | AH103: 0 | AI103: 0 | AJ103: 0 | AK103: 0 | AL103: 0 | AM103: 0 | AN103: 0 | AO103: 0 | AP103: 0 | AQ103: 0 | AR103: 0 | AS103: 0 | AT103: 0 | AU103: 0 | AV103: 0 | AW103: 0 | AX103: 0 | AY103: 0 | AZ103: 0 | BA103: 0 | BB103: 1 | BC103: 0 | BD103: 0 | BE103: 0 | BF103: 1 | BG103: 0 | BH103: 0 | BI103: 0 | BJ103: 0 | BK103: 0 | BL103: 0 | BM103: 0 | BN103: 0 | BO103: 0 | BP103: 0 | BQ103: 0 | BR103: 0 | BS103: 0 | BT103: 0 | BU103: 0 | BV103: 0
V104: 12:45:00 | W104: 13:00:00 | Z104: PSV | AA104: 8 | AB104: 10 | AC104: 10 | AD104: 7 | AE104: 10 | AF104: 6 | AG104: 9 | AH104: 6 | AI104: 8 | AJ104: 6 | AK104: 8 | AL104: 7 | AM104: 7 | AN104: 5 | AO104: 9 | AP104: 5 | AQ104: 8 | AR104: 6 | AS104: 6 | AT104: 7 | AU104: 5 | AV104: 7 | AW104: 6 | AX104: 9 | AY104: 8 | AZ104: 7 | BA104: 7 | BB104: 6 | BC104: 9 | BD104: 8 | BE104: 7 | BF104: 8 | BG104: 7 | BH104: 7 | BI104: 7 | BJ104: 5 | BK104: 6 | BL104: 10 | BM104: 6 | BN104: 6 | BO104: 8 | BP104: 7 | BQ104: 5 | BR104: 9 | BS104: 5 | BT104: 6 | BU104: 6 | BV104: 6
V105: 13:00:00 | W105: 13:15:00 | Z105: MC | AA105: 0 | AB105: 4 | AC105: 7 | AD105: 5 | AE105: 5 | AF105: 7 | AG105: 4 | AH105: 9 | AI105: 5 | AJ105: 5 | AK105: 7 | AL105: 5 | AM105: 5 | AN105: 6 | AO105: 3 | AP105: 6 | AQ105: 11 | AR105: 10 | AS105: 10 | AT105: 14 | AU105: 4 | AV105: 9 | AW105: 11 | AX105: 6 | AY105: 10 | AZ105: 18 | BA105: 9 | BB105: 10 | BC105: 14 | BD105: 14 | BE105: 19 | BF105: 11 | BG105: 16 | BH105: 10 | BI105: 8 | BJ105: 10 | BK105: 7 | BL105: 6 | BM105: 10 | BN105: 15 | BO105: 7 | BP105: 16 | BQ105: 15 | BR105: 8 | BS105: 12 | BT105: 10 | BU105: 18 | BV105: 30
V106: 13:15:00 | W106: 13:30:00 | Z106: PC | AA106: 7 | AB106: 22 | AC106: 21 | AD106: 9 | AE106: 19 | AF106: 20 | AG106: 17 | AH106: 19 | AI106: 13 | AJ106: 17 | AK106: 12 | AL106: 12 | AM106: 8 | AN106: 9 | AO106: 7 | AP106: 7 | AQ106: 6 | AR106: 11 | AS106: 9 | AT106: 9 | AU106: 8 | AV106: 7 | AW106: 5 | AX106: 12 | AY106: 10 | AZ106: 9 | BA106: 8 | BB106: 14 | BC106: 8 | BD106: 9 | BE106: 14 | BF106: 18 | BG106: 9 | BH106: 11 | BI106: 15 | BJ106: 11 | BK106: 15 | BL106: 21 | BM106: 24 | BN106: 22 | BO106: 26 | BP106: 13 | BQ106: 22 | BR106: 27 | BS106: 16 | BT106: 13 | BU106: 22 | BV106: 13
V107: 13:30:00 | W107: 13:45:00
V108: 13:45:00 | W108: 14:00:00
V109: 14:00:00 | W109: 14:15:00
V110: 14:15:00 | W110: 14:30:00
V111: 14:30:00 | W111: 14:45:00
V112: 14:45:00 | W112: 15:00:00
V113: 15:00:00 | W113: 15:15:00
V114: 15:15:00 | W114: 15:30:00
V115: 15:30:00 | W115: 15:45:00
V116: 15:45:00 | W116: 16:00:00
V117: 16:00:00 | W117: 16:15:00
V118: 16:15:00 | W118: 16:30:00
V119: 16:30:00 | W119: 16:45:00
V120: 16:45:00 | W120: 17:00:00 | Y120: Counts for pie chart | Z120: Car | AA120: 0.683953848
V121: 17:00:00 | W121: 17:15:00 | Z121: LGV | AA121: 0.1297728084
V122: 17:15:00 | W122: 17:30:00 | Z122: OGV1 | AA122: 0.0126085405
V123: 17:30:00 | W123: 17:45:00 | Z123: OGV2 | AA123: 0.0002378969906
V124: 17:45:00 | W124: 18:00:00 | Z124: PSV | AA124: 0.0405614369
V125: 18:00:00 | W125: 18:15:00 | Z125: MC | AA125: 0.05483525633
V126: 18:15:00 | W126: 18:30:00 | Z126: PC | AA126: 0.07803021292
V127: 18:30:00 | W127: 18:45:00
V128: 18:45:00 | W128: 19:00:00
Z140: 07:00:00 | AA140: 07:15:00 | AB140: 07:30:00 | AC140: 07:45:00 | AD140: 08:00:00 | AE140: 08:15:00 | AF140: 08:30:00 | AG140: 08:45:00 | AH140: 09:00:00 | AI140: 09:15:00 | AJ140: 09:30:00 | AK140: 09:45:00 | AL140: 10:00:00 | AM140: 10:15:00 | AN140: 10:30:00 | AO140: 10:45:00 | AP140: 11:00:00 | AQ140: 11:15:00 | AR140: 11:30:00 | AS140: 11:45:00 | AT140: 12:00:00 | AU140: 12:15:00 | AV140: 12:30:00 | AW140: 12:45:00 | AX140: 13:00:00 | AY140: 13:15:00 | AZ140: 13:30:00 | BA140: 13:45:00 | BB140: 14:00:00 | BC140: 14:15:00 | BD140: 14:30:00 | BE140: 14:45:00 | BF140: 15:00:00 | BG140: 15:15:00 | BH140: 15:30:00 | BI140: 15:45:00 | BJ140: 16:00:00 | BK140: 16:15:00 | BL140: 16:30:00 | BM140: 16:45:00 | BN140: 17:00:00 | BO140: 17:15:00 | BP140: 17:30:00 | BQ140: 17:45:00 | BR140: 18:00:00 | BS140: 18:15:00 | BT140: 18:30:00 | BU140: 18:45:00
Y141: 0 | Z141: 108 | AA141: 141 | AB141: 171 | AC141: 170 | AD141: 173 | AE141: 182 | AF141: 203 | AG141: 202 | AH141: 192 | AI141: 187 | AJ141: 169 | AK141: 177 | AL141: 153 | AM141: 141 | AN141: 168 | AO141: 168 | AP141: 167 | AQ141: 147 | AR141: 165 | AS141: 183 | AT141: 157 | AU141: 163 | AV141: 163 | AW141: 180 | AX141: 185 | AY141: 176 | AZ141: 153 | BA141: 158 | BB141: 149 | BC141: 202 | BD141: 164 | BE141: 177 | BF141: 203 | BG141: 196 | BH141: 164 | BI141: 179 | BJ141: 190 | BK141: 188 | BL141: 177 | BM141: 189 | BN141: 215 | BO141: 185 | BP141: 193 | BQ141: 206 | BR141: 173 | BS141: 175 | BT141: 192 | BU141: 188 | BV141: 0 | BW141: 0 | BX141: 0 | BY141: 0 | BZ141: 0 | CA141: 0 | CB141: 0 | CC141: 0 | CD141: 0 | CE141: 0 | CF141: 0 | CG141: 0 | CH141: 0 | CI141: 0 | CJ141: 0 | CK141: 0 | CL141: 0 | CM141: 0 | CN141: 0 | CO141: 0 | CP141: 0 | CQ141: 0 | CR141: 0 | CS141: 0 | CT141: 0 | CU141: 0 | CV141: 0 | CW141: 0 | CX141: 0 | CY141: 0 | CZ141: 0 | DA141: 0 | DB141: 0 | DC141: 0 | DD141: 0 | DE141: 0 | DF141: 0 | DG141: 0 | DH141: 0 | DI141: 0 | DJ141: 0 | DK141: 0 | DL141: 0 | DM141: 0 | DN141: 0 | DO141: 0 | DP141: 0 | DQ141: 0 | DR141: 0 | DS141: 0 | DT141: 0 | DU141: 0 | DV141: 0 | DW141: 0 | DX141: 0 | DY141: 0 | DZ141: 0 | EA141: 0 | EB141: 0 | EC141: 0 | ED141: 0 | EE141: 0 | EF141: 0 | EG141: 0 | EH141: 0 | EI141: 0 | EJ141: 0 | EK141: 0 | EL141: 0 | EM141: 0 | EN141: 0 | EO141: 0 | EP141: 0 | EQ141: 0 | ER141: 0 | ES141: 0 | ET141: 0 | EU141: 0 | EV141: 0 | EW141: 0 | EX141: 0 | EY141: 0 | EZ141: 0 | FA141: 0 | FB141: 0 | FC141: 0 | FD141: 0 | FE141: 0 | FF141: 0 | FG141: 0 | FH141: 0 | FI141: 0 | FJ141: 0 | FK141: 0 | FL141: 0 | FM141: 0
AS177: =AS176+"00:15:00" -> 0.01041666667
AS178: 0.02083333333
AS179: 0.03125
AS180: 0.04166666667
AS181: 0.05208333333
AS182: 0.0625
AS183: 0.07291666667
AS184: 0.08333333333
AS185: 0.09375
AS186: 0.1041666667
AS187: 0.1145833333
AS188: 0.125
AS189: 0.1354166667
AS190: 0.1458333333
AS191: 0.15625
AS192: 0.1666666667
AS193: 0.1770833333
AS194: 0.1875
AS195: 0.1979166667
AS196: 0.2083333333
AS197: 0.21875
AS198: 0.2291666667
AS199: 0.2395833333
AS200: 0.25
AS201: 0.2604166667
AS202: 0.2708333333
AS203: 0.28125
AS204: 07:00:00
AS205: 07:15:00
AS206: 07:30:00
AS207: 07:45:00
AS208: 08:00:00
AS209: =AS208+"00:15:00" -> 08:15:00
AS210: 08:30:00
AS211: 08:45:00
AS212: 09:00:00
AS213: 09:15:00
AS214: 09:30:00
AS215: 09:45:00
AS216: 10:00:00
AS217: 10:15:00
AS218: 10:30:00
AS219: 10:45:00
AS220: 11:00:00
AS221: 11:15:00
AS222: 11:30:00
AS223: 11:45:00
AS224: 12:00:00
AS225: 12:15:00
AS226: 12:30:00
AS227: 12:45:00
AS228: 13:00:00
AS229: 13:15:00
AS230: 13:30:00
AS231: 13:45:00
AS232: 14:00:00
AS233: 14:15:00
AS234: 14:30:00
AS235: 14:45:00
AS236: 15:00:00
AS237: 15:15:00
AS238: 15:30:00
AS239: 15:45:00
AS240: 16:00:00
AS241: =AS240+"00:15:00" -> 16:15:00
AS242: 16:30:00
AS243: 16:45:00
AS244: 17:00:00
AS245: 17:15:00
AS246: 17:30:00
AS247: 17:45:00
AS248: 18:00:00
AS249: 18:15:00
AS250: 18:30:00
AS251: 18:45:00
AS252: 19:00:00
AS253: 19:15:00
AS254: 19:30:00
AS255: 19:45:00
AS256: 20:00:00
AS257: 20:15:00
AS258: 20:30:00
AS259: 20:45:00
AS260: 21:00:00
AS261: 21:15:00
AS262: 21:30:00
AS263: 21:45:00
AS264: 22:00:00
AS265: 22:15:00
AS266: 22:30:00
AS267: 22:45:00
AS268: 23:00:00
... 50 more rows

Sheet Main (hidden)
A1: Required Classes | B1: Vivacity Classes | D1: Interval
A2: Car | B2: CAR | D2: 15 | M2: 1 Click the 'Transfer…' button on the 'Main' worksheet.
A3: LGV | B3: LGV | M3: 2 Select the folder containing the Vivacity CSV files you want to transfer to the template.
A4: OGV1 | B4: OGV1 | M4: 3 For each site drag the relevant CSV across to the site list.
A5: OGV2 | B5: OGV2 | M5: 4 Click the 'Transfer...' button on the form.
A6: PSV | B6: BUS
A7: MC | B7: MC
A8: PC | B8: PC
M10: Click the 'Populate…' button on the Main worksheet to populate the Felicity Comparison sheet with site/arm details from current template

Sheet Felicity Comparison (hidden)
A1: Survey | B1: Date | C1: Site | D1: Camera | E1: Movement | F1: Origin Arm | G1: Destination Arm | H1: Additional counts required? | I1: Comment | J1: Hours Passed | K1: Hours Failed | L1: Minutes Failed (5 minute multiples) | N1: Total Hours
P2: Survey Start | Q2: 07:00:00 | S2: 1
A3: 3786-SCO | B3: 29/05/2019 | C3: 1 | D3: 1 | E3: A-A | F3: A | G3: A | J3: =N3-M3 -> 00:00:00 | K3: 6 | L3: 0 | M3: =TIME(K3,L3,0) -> 06:00:00 | N3: =$Q$4 -> 06:00:00 | P3: Survey End | Q3: 19:00:00 | S3: Origin Arm | T3: Total hours | U3: Passed hours | V3: Failed hours
P4: Survey Duration | Q4: 06:00:00 | S4: A | T4: =SUMIFS($N:$N,$F:$F,S4,$C:$C,S2) -> 0.25 | U4: =SUMIFS($J:$J,$F:$F,S4,$C:$C,S2) -> 0 | V4: =SUMIFS($M:$M,$F:$F,S4,$C:$C,S2) -> 0.25 | W4: =IF(U4+V4=T4,"OK","Check") -> OK
S5: B | T5: =SUMIFS($N:$N,$F:$F,S5,$C:$C,S2) -> 0 | U5: =SUMIFS($J:$J,$F:$F,S5,$C:$C,S2) -> 0 | V5: =SUMIFS($M:$M,$F:$F,S5,$C:$C,S2) -> 0 | W5: =IF(U5+V5=T5,"OK","Check") -> OK
S6: C | T6: =SUMIFS($N:$N,$F:$F,S6,$C:$C,S2) -> 0 | U6: =SUMIFS($J:$J,$F:$F,S6,$C:$C,S2) -> 0 | V6: =SUMIFS($M:$M,$F:$F,S6,$C:$C,S2) -> 0 | W6: =IF(U6+V6=T6,"OK","Check") -> OK
P7: Total | Q7: =SUM(N:N) -> 0.25 | S7: D | T7: =SUMIFS($N:$N,$F:$F,S7,$C:$C,S2) -> 0 | U7: =SUMIFS($J:$J,$F:$F,S7,$C:$C,S2) -> 0 | V7: =SUMIFS($M:$M,$F:$F,S7,$C:$C,S2) -> 0 | W7: =IF(U7+V7=T7,"OK","Check") -> OK
P8: Passed | Q8: =SUM(J:J) -> 0
P9: Failed | Q9: =SUM(M:M) -> 0.25 | S9: 2
P10: Pass Rate | Q10: =Q8/Q7 -> 0 | S10: Origin Arm | T10: Total hours | U10: Passed hours | V10: Failed hours
S11: A | T11: =SUMIFS($N:$N,$F:$F,S11,$C:$C,S9) -> 0 | U11: =SUMIFS($J:$J,$F:$F,S11,$C:$C,S9) -> 0 | V11: =SUMIFS($M:$M,$F:$F,S11,$C:$C,S9) -> 0 | W11: =IF(U11+V11=T11,"OK","Check") -> OK
S12: B | T12: =SUMIFS($N:$N,$F:$F,S12,$C:$C,S9) -> 0 | U12: =SUMIFS($J:$J,$F:$F,S12,$C:$C,S9) -> 0 | V12: =SUMIFS($M:$M,$F:$F,S12,$C:$C,S9) -> 0 | W12: =IF(U12+V12=T12,"OK","Check") -> OK
P13: Site | Q13: Pass Rate | S13: C | T13: =SUMIFS($N:$N,$F:$F,S13,$C:$C,S9) -> 0 | U13: =SUMIFS($J:$J,$F:$F,S13,$C:$C,S9) -> 0 | V13: =SUMIFS($M:$M,$F:$F,S13,$C:$C,S9) -> 0 | W13: =IF(U13+V13=T13,"OK","Check") -> OK
P14: 1 | S14: D | T14: =SUMIFS($N:$N,$F:$F,S14,$C:$C,S9) -> 0 | U14: =SUMIFS($J:$J,$F:$F,S14,$C:$C,S9) -> 0 | V14: =SUMIFS($M:$M,$F:$F,S14,$C:$C,S9) -> 0 | W14: =IF(U14+V14=T14,"OK","Check") -> OK
P15: 2
P16: 3 | S16: 3
P17: 4 | S17: Origin Arm | T17: Total hours | U17: Passed hours | V17: Failed hours
P18: 5 | S18: A | T18: =SUMIFS($N:$N,$F:$F,S18,$C:$C,S16) -> 0 | U18: =SUMIFS($J:$J,$F:$F,S18,$C:$C,S16) -> 0 | V18: =SUMIFS($M:$M,$F:$F,S18,$C:$C,S16) -> 0 | W18: =IF(U18+V18=T18,"OK","Check") -> OK
P19: 6 | S19: B | T19: =SUMIFS($N:$N,$F:$F,S19,$C:$C,S16) -> 0 | U19: =SUMIFS($J:$J,$F:$F,S19,$C:$C,S16) -> 0 | V19: =SUMIFS($M:$M,$F:$F,S19,$C:$C,S16) -> 0 | W19: =IF(U19+V19=T19,"OK","Check") -> OK
P20: 7 | S20: C | T20: =SUMIFS($N:$N,$F:$F,S20,$C:$C,S16) -> 0 | U20: =SUMIFS($J:$J,$F:$F,S20,$C:$C,S16) -> 0 | V20: =SUMIFS($M:$M,$F:$F,S20,$C:$C,S16) -> 0 | W20: =IF(U20+V20=T20,"OK","Check") -> OK
P21: 8 | S21: D | T21: =SUMIFS($N:$N,$F:$F,S21,$C:$C,S16) -> 0 | U21: =SUMIFS($J:$J,$F:$F,S21,$C:$C,S16) -> 0 | V21: =SUMIFS($M:$M,$F:$F,S21,$C:$C,S16) -> 0 | W21: =IF(U21+V21=T21,"OK","Check") -> OK
S23: 4
S24: Origin Arm | T24: Total hours | U24: Passed hours | V24: Failed hours
S25: A | T25: =SUMIFS($N:$N,$F:$F,S25,$C:$C,S23) -> 0 | U25: =SUMIFS($J:$J,$F:$F,S25,$C:$C,S23) -> 0 | V25: =SUMIFS($M:$M,$F:$F,S25,$C:$C,S23) -> 0 | W25: =IF(U25+V25=T25,"OK","Check") -> OK
S26: B | T26: =SUMIFS($N:$N,$F:$F,S26,$C:$C,S23) -> 0 | U26: =SUMIFS($J:$J,$F:$F,S26,$C:$C,S23) -> 0 | V26: =SUMIFS($M:$M,$F:$F,S26,$C:$C,S23) -> 0 | W26: =IF(U26+V26=T26,"OK","Check") -> OK
S27: C | T27: =SUMIFS($N:$N,$F:$F,S27,$C:$C,S23) -> 0 | U27: =SUMIFS($J:$J,$F:$F,S27,$C:$C,S23) -> 0 | V27: =SUMIFS($M:$M,$F:$F,S27,$C:$C,S23) -> 0 | W27: =IF(U27+V27=T27,"OK","Check") -> OK
S28: D | T28: =SUMIFS($N:$N,$F:$F,S28,$C:$C,S23) -> 0 | U28: =SUMIFS($J:$J,$F:$F,S28,$C:$C,S23) -> 0 | V28: =SUMIFS($M:$M,$F:$F,S28,$C:$C,S23) -> 0 | W28: =IF(U28+V28=T28,"OK","Check") -> OK
S30: 5
S31: Origin Arm | T31: Total hours | U31: Passed hours | V31: Failed hours
S32: A | T32: =SUMIFS($N:$N,$F:$F,S32,$C:$C,S30) -> 0 | U32: =SUMIFS($J:$J,$F:$F,S32,$C:$C,S30) -> 0 | V32: =SUMIFS($M:$M,$F:$F,S32,$C:$C,S30) -> 0 | W32: =IF(U32+V32=T32,"OK","Check") -> OK
S33: B | T33: =SUMIFS($N:$N,$F:$F,S33,$C:$C,S30) -> 0 | U33: =SUMIFS($J:$J,$F:$F,S33,$C:$C,S30) -> 0 | V33: =SUMIFS($M:$M,$F:$F,S33,$C:$C,S30) -> 0 | W33: =IF(U33+V33=T33,"OK","Check") -> OK
S34: C | T34: =SUMIFS($N:$N,$F:$F,S34,$C:$C,S30) -> 0 | U34: =SUMIFS($J:$J,$F:$F,S34,$C:$C,S30) -> 0 | V34: =SUMIFS($M:$M,$F:$F,S34,$C:$C,S30) -> 0 | W34: =IF(U34+V34=T34,"OK","Check") -> OK
S36: 6
S37: Origin Arm | T37: Total hours | U37: Passed hours | V37: Failed hours
S38: A | T38: =SUMIFS($N:$N,$F:$F,S38,$C:$C,S36) -> 0 | U38: =SUMIFS($J:$J,$F:$F,S38,$C:$C,S36) -> 0 | V38: =SUMIFS($M:$M,$F:$F,S38,$C:$C,S36) -> 0 | W38: =IF(U38+V38=T38,"OK","Check") -> OK
S39: B | T39: =SUMIFS($N:$N,$F:$F,S39,$C:$C,S36) -> 0 | U39: =SUMIFS($J:$J,$F:$F,S39,$C:$C,S36) -> 0 | V39: =SUMIFS($M:$M,$F:$F,S39,$C:$C,S36) -> 0 | W39: =IF(U39+V39=T39,"OK","Check") -> OK
S40: C | T40: =SUMIFS($N:$N,$F:$F,S40,$C:$C,S36) -> 0 | U40: =SUMIFS($J:$J,$F:$F,S40,$C:$C,S36) -> 0 | V40: =SUMIFS($M:$M,$F:$F,S40,$C:$C,S36) -> 0 | W40: =IF(U40+V40=T40,"OK","Check") -> OK
S42: 7
S43: Origin Arm | T43: Total hours | U43: Passed hours | V43: Failed hours
S44: A | T44: =SUMIFS($N:$N,$F:$F,S44,$C:$C,S42) -> 0 | U44: =SUMIFS($J:$J,$F:$F,S44,$C:$C,S42) -> 0 | V44: =SUMIFS($M:$M,$F:$F,S44,$C:$C,S42) -> 0 | W44: =IF(U44+V44=T44,"OK","Check") -> OK
S45: B | T45: =SUMIFS($N:$N,$F:$F,S45,$C:$C,S42) -> 0 | U45: =SUMIFS($J:$J,$F:$F,S45,$C:$C,S42) -> 0 | V45: =SUMIFS($M:$M,$F:$F,S45,$C:$C,S42) -> 0 | W45: =IF(U45+V45=T45,"OK","Check") -> OK
S46: C | T46: =SUMIFS($N:$N,$F:$F,S46,$C:$C,S42) -> 0 | U46: =SUMIFS($J:$J,$F:$F,S46,$C:$C,S42) -> 0 | V46: =SUMIFS($M:$M,$F:$F,S46,$C:$C,S42) -> 0 | W46: =IF(U46+V46=T46,"OK","Check") -> OK
S48: 8
S49: Origin Arm | T49: Total hours | U49: Passed hours | V49: Failed hours
S50: A | T50: =SUMIFS($N:$N,$F:$F,S50,$C:$C,S48) -> 0 | U50: =SUMIFS($J:$J,$F:$F,S50,$C:$C,S48) -> 0 | V50: =SUMIFS($M:$M,$F:$F,S50,$C:$C,S48) -> 0 | W50: =IF(U50+V50=T50,"OK","Check") -> OK
S51: B | T51: =SUMIFS($N:$N,$F:$F,S51,$C:$C,S48) -> 0 | U51: =SUMIFS($J:$J,$F:$F,S51,$C:$C,S48) -> 0 | V51: =SUMIFS($M:$M,$F:$F,S51,$C:$C,S48) -> 0 | W51: =IF(U51+V51=T51,"OK","Check") -> OK
S52: C | T52: =SUMIFS($N:$N,$F:$F,S52,$C:$C,S48) -> 0 | U52: =SUMIFS($J:$J,$F:$F,S52,$C:$C,S48) -> 0 | V52: =SUMIFS($M:$M,$F:$F,S52,$C:$C,S48) -> 0 | W52: =IF(U52+V52=T52,"OK","Check") -> OK
S53: D | T53: =SUMIFS($N:$N,$F:$F,S53,$C:$C,S48) -> 0 | U53: =SUMIFS($J:$J,$F:$F,S53,$C:$C,S48) -> 0 | V53: =SUMIFS($M:$M,$F:$F,S53,$C:$C,S48) -> 0 | W53: =IF(U53+V53=T53,"OK","Check") -> OK

Sheet Maps (hidden)
A2: Site 1 | F2: ALL | M2: No relevant observations | AM2: 25

Sheet Site 1
AC1: ='Project Details'!F9&" "&'Project Details'!F10 -> 4742-LON Fisher’s Lane Repeat
AC2: ='Project Details'!R7 -> Junction Turning Count
Z3: ='Project Details'!F14 -> 20/10/2020
AC5: Site 1 - A409 South Parade (E) / Fisher's Lane / A409 South Parade (W)
A8: Origin : | B8: Arm A | C8: A409 South Parade (E)
B9: Destination : | D9: Arm A | E9: A409 South Parade (E) | I9: Total | K9: Destination : | M9: Arm B | N9: Fisher's Lane | R9: Total | T9: Destination : | V9: Arm C | W9: A409 South Parade (W) | AA9: Total | AC9: Arm Totals
B10: Car | C10: LGV | D10: OGV1 | E10: OGV2 | F10: PSV | G10: MC | H10: PC | K10: =$B$10 -> Car | L10: =$C$10 -> LGV | M10: =$D$10 -> OGV1 | N10: =$E$10 -> OGV2 | O10: =$F$10 -> PSV | P10: =$G$10 -> MC | Q10: =$H$10 -> PC | T10: =$B$10 -> Car | U10: =$C$10 -> LGV | V10: =$D$10 -> OGV1 | W10: =$E$10 -> OGV2 | X10: =$F$10 -> PSV | Y10: =$G$10 -> MC | Z10: =$H$10 -> PC
A12: 07:00:00 | B12: 0 | C12: 0 | D12: 0 | E12: 0 | F12: 0 | G12: 0 | H12: 0 | I12: =SUM(B12:H12) -> 0 | K12: 0 | L12: 0 | M12: 0 | N12: 0 | O12: 0 | P12: 0 | Q12: 2 | R12: =SUM(K12:Q12) -> 2 | T12: 26 | U12: 5 | V12: 0 | W12: 0 | X12: 4 | Y12: 0 | Z12: 2 | AA12: =SUM(T12:Z12) -> 37 | AC12: =SUM(I12+R12+AA12) -> 39
A13: 07:15:00 | B13: 0 | C13: 0 | D13: 0 | E13: 0 | F13: 0 | G13: 0 | H13: 0 | I13: =SUM(B13:H13) -> 0 | K13: 1 | L13: 1 | M13: 0 | N13: 0 | O13: 2 | P13: 0 | Q13: 3 | R13: =SUM(K13:Q13) -> 7 | T13: 38 | U13: 5 | V13: 0 | W13: 0 | X13: 3 | Y13: 0 | Z13: 4 | AA13: =SUM(T13:Z13) -> 50 | AC13: =SUM(I13+R13+AA13) -> 57
A14: 07:30:00 | B14: 0 | C14: 0 | D14: 0 | E14: 0 | F14: 0 | G14: 0 | H14: 0 | I14: =SUM(B14:H14) -> 0 | K14: 0 | L14: 0 | M14: 0 | N14: 0 | O14: 1 | P14: 0 | Q14: 3 | R14: =SUM(K14:Q14) -> 4 | T14: 33 | U14: 5 | V14: 0 | W14: 0 | X14: 5 | Y14: 0 | Z14: 3 | AA14: =SUM(T14:Z14) -> 46 | AC14: =SUM(I14+R14+AA14) -> 50
A15: 07:45:00 | B15: 0 | C15: 0 | D15: 0 | E15: 0 | F15: 0 | G15: 0 | H15: 0 | I15: =SUM(B15:H15) -> 0 | K15: 3 | L15: 1 | M15: 0 | N15: 0 | O15: 0 | P15: 0 | Q15: 0 | R15: =SUM(K15:Q15) -> 4 | T15: 33 | U15: 11 | V15: 1 | W15: 0 | X15: 3 | Y15: 2 | Z15: 1 | AA15: =SUM(T15:Z15) -> 51 | AC15: =SUM(I15+R15+AA15) -> 55
A16: 1 Hr | B16: =SUM(B12:B15) -> 0 | C16: 0 | D16: 0 | E16: 0 | F16: 0 | G16: 0 | H16: 0 | I16: 0 | K16: =SUM(K12:K15) -> 4 | L16: 2 | M16: 0 | N16: 0 | O16: 3 | P16: 0 | Q16: 8 | R16: 17 | T16: =SUM(T12:T15) -> 130 | U16: 26 | V16: 1 | W16: 0 | X16: 15 | Y16: 2 | Z16: 10 | AA16: 184 | AC16: =SUM(AC12:AC15) -> 201
A17: 08:00:00 | B17: 0 | C17: 0 | D17: 0 | E17: 0 | F17: 0 | G17: 0 | H17: 0 | I17: =SUM(B17:H17) -> 0 | K17: 3 | L17: 0 | M17: 0 | N17: 0 | O17: 2 | P17: 0 | Q17: 1 | R17: =SUM(K17:Q17) -> 6 | T17: 41 | U17: 6 | V17: 1 | W17: 0 | X17: 3 | Y17: 0 | Z17: 0 | AA17: =SUM(T17:Z17) -> 51 | AC17: =SUM(I17+R17+AA17) -> 57
A18: 08:15:00 | B18: 0 | C18: 0 | D18: 0 | E18: 0 | F18: 0 | G18: 0 | H18: 0 | I18: =SUM(B18:H18) -> 0 | K18: 4 | L18: 0 | M18: 0 | N18: 0 | O18: 1 | P18: 0 | Q18: 3 | R18: =SUM(K18:Q18) -> 8 | T18: 48 | U18: 7 | V18: 0 | W18: 0 | X18: 2 | Y18: 0 | Z18: 0 | AA18: =SUM(T18:Z18) -> 57 | AC18: =SUM(I18+R18+AA18) -> 65
A19: 08:30:00 | B19: 0 | C19: 0 | D19: 0 | E19: 0 | F19: 0 | G19: 0 | H19: 0 | I19: =SUM(B19:H19) -> 0 | K19: 1 | L19: 0 | M19: 0 | N19: 0 | O19: 1 | P19: 0 | Q19: 0 | R19: =SUM(K19:Q19) -> 2 | T19: 53 | U19: 13 | V19: 2 | W19: 0 | X19: 4 | Y19: 2 | Z19: 2 | AA19: =SUM(T19:Z19) -> 76 | AC19: =SUM(I19+R19+AA19) -> 78
A20: 08:45:00 | B20: 0 | C20: 0 | D20: 0 | E20: 0 | F20: 0 | G20: 0 | H20: 0 | I20: =SUM(B20:H20) -> 0 | K20: 1 | L20: 0 | M20: 0 | N20: 0 | O20: 1 | P20: 0 | Q20: 2 | R20: =SUM(K20:Q20) -> 4 | T20: 64 | U20: 12 | V20: 0 | W20: 0 | X20: 2 | Y20: 4 | Z20: 4 | AA20: =SUM(T20:Z20) -> 86 | AC20: =SUM(I20+R20+AA20) -> 90
A21: 1 Hr | B21: =SUM(B17:B20) -> 0 | C21: 0 | D21: 0 | E21: 0 | F21: 0 | G21: 0 | H21: 0 | I21: 0 | K21: =SUM(K17:K20) -> 9 | L21: 0 | M21: 0 | N21: 0 | O21: 5 | P21: 0 | Q21: 6 | R21: 20 | T21: =SUM(T17:T20) -> 206 | U21: 38 | V21: 3 | W21: 0 | X21: 11 | Y21: 6 | Z21: 6 | AA21: 270 | AC21: =SUM(AC17:AC20) -> 290
A22: 09:00:00 | B22: 0 | C22: 0 | D22: 0 | E22: 0 | F22: 0 | G22: 0 | H22: 0 | I22: =SUM(B22:H22) -> 0 | K22: 3 | L22: 1 | M22: 0 | N22: 0 | O22: 1 | P22: 0 | Q22: 1 | R22: =SUM(K22:Q22) -> 6 | T22: 62 | U22: 11 | V22: 2 | W22: 0 | X22: 3 | Y22: 3 | Z22: 4 | AA22: =SUM(T22:Z22) -> 85 | AC22: =SUM(I22+R22+AA22) -> 91
A23: 09:15:00 | B23: 0 | C23: 0 | D23: 0 | E23: 0 | F23: 0 | G23: 0 | H23: 0 | I23: =SUM(B23:H23) -> 0 | K23: 1 | L23: 2 | M23: 0 | N23: 0 | O23: 1 | P23: 0 | Q23: 2 | R23: =SUM(K23:Q23) -> 6 | T23: 59 | U23: 13 | V23: 1 | W23: 0 | X23: 2 | Y23: 4 | Z23: 1 | AA23: =SUM(T23:Z23) -> 80 | AC23: =SUM(I23+R23+AA23) -> 86
A24: 09:30:00 | B24: 0 | C24: 0 | D24: 0 | E24: 0 | F24: 0 | G24: 0 | H24: 0 | I24: =SUM(B24:H24) -> 0 | K24: 0 | L24: 1 | M24: 0 | N24: 0 | O24: 1 | P24: 0 | Q24: 0 | R24: =SUM(K24:Q24) -> 2 | T24: 46 | U24: 9 | V24: 0 | W24: 0 | X24: 3 | Y24: 2 | Z24: 3 | AA24: =SUM(T24:Z24) -> 63 | AC24: =SUM(I24+R24+AA24) -> 65
A25: 09:45:00 | B25: 0 | C25: 0 | D25: 0 | E25: 0 | F25: 0 | G25: 0 | H25: 0 | I25: =SUM(B25:H25) -> 0 | K25: 1 | L25: 0 | M25: 0 | N25: 0 | O25: 1 | P25: 0 | Q25: 2 | R25: =SUM(K25:Q25) -> 4 | T25: 54 | U25: 7 | V25: 1 | W25: 0 | X25: 3 | Y25: 3 | Z25: 1 | AA25: =SUM(T25:Z25) -> 69 | AC25: =SUM(I25+R25+AA25) -> 73
A26: 1 Hr | B26: =SUM(B22:B25) -> 0 | C26: 0 | D26: 0 | E26: 0 | F26: 0 | G26: 0 | H26: 0 | I26: 0 | K26: =SUM(K22:K25) -> 5 | L26: 4 | M26: 0 | N26: 0 | O26: 4 | P26: 0 | Q26: 5 | R26: 18 | T26: =SUM(T22:T25) -> 221 | U26: 40 | V26: 4 | W26: 0 | X26: 11 | Y26: 12 | Z26: 9 | AA26: 297 | AC26: =SUM(AC22:AC25) -> 315
A27: 10:00:00 | B27: 0 | C27: 0 | D27: 0 | E27: 0 | F27: 0 | G27: 0 | H27: 0 | I27: =SUM(B27:H27) -> 0 | K27: 3 | L27: 0 | M27: 0 | N27: 0 | O27: 1 | P27: 0 | Q27: 2 | R27: =SUM(K27:Q27) -> 6 | T27: 32 | U27: 6 | V27: 1 | W27: 0 | X27: 3 | Y27: 2 | Z27: 1 | AA27: =SUM(T27:Z27) -> 45 | AC27: =SUM(I27+R27+AA27) -> 51
A28: 10:15:00 | B28: 1 | C28: 0 | D28: 0 | E28: 0 | F28: 0 | G28: 0 | H28: 0 | I28: =SUM(B28:H28) -> 1 | K28: 0 | L28: 1 | M28: 0 | N28: 0 | O28: 0 | P28: 0 | Q28: 2 | R28: =SUM(K28:Q28) -> 3 | T28: 48 | U28: 7 | V28: 1 | W28: 0 | X28: 1 | Y28: 2 | Z28: 0 | AA28: =SUM(T28:Z28) -> 59 | AC28: =SUM(I28+R28+AA28) -> 63
A29: 10:30:00 | B29: 0 | C29: 0 | D29: 0 | E29: 0 | F29: 0 | G29: 0 | H29: 0 | I29: =SUM(B29:H29) -> 0 | K29: 4 | L29: 1 | M29: 0 | N29: 0 | O29: 2 | P29: 0 | Q29: 0 | R29: =SUM(K29:Q29) -> 7 | T29: 56 | U29: 12 | V29: 2 | W29: 0 | X29: 3 | Y29: 1 | Z29: 0 | AA29: =SUM(T29:Z29) -> 74 | AC29: =SUM(I29+R29+AA29) -> 81
A30: 10:45:00 | B30: 0 | C30: 0 | D30: 0 | E30: 0 | F30: 0 | G30: 0 | H30: 0 | I30: =SUM(B30:H30) -> 0 | K30: 1 | L30: 1 | M30: 0 | N30: 0 | O30: 0 | P30: 0 | Q30: 2 | R30: =SUM(K30:Q30) -> 4 | T30: 55 | U30: 14 | V30: 1 | W30: 0 | X30: 2 | Y30: 2 | Z30: 1 | AA30: =SUM(T30:Z30) -> 75 | AC30: =SUM(I30+R30+AA30) -> 79
A31: 1 Hr | B31: =SUM(B27:B30) -> 1 | C31: 0 | D31: 0 | E31: 0 | F31: 0 | G31: 0 | H31: 0 | I31: 1 | K31: =SUM(K27:K30) -> 8 | L31: 3 | M31: 0 | N31: 0 | O31: 3 | P31: 0 | Q31: 6 | R31: 20 | T31: =SUM(T27:T30) -> 191 | U31: 39 | V31: 5 | W31: 0 | X31: 9 | Y31: 7 | Z31: 2 | AA31: 253 | AC31: =SUM(AC27:AC30) -> 274
A32: 11:00:00 | B32: 0 | C32: 0 | D32: 0 | E32: 0 | F32: 0 | G32: 0 | H32: 0 | I32: =SUM(B32:H32) -> 0 | K32: 0 | L32: 2 | M32: 0 | N32: 0 | O32: 1 | P32: 0 | Q32: 2 | R32: =SUM(K32:Q32) -> 5 | T32: 43 | U32: 16 | V32: 0 | W32: 0 | X32: 3 | Y32: 7 | Z32: 0 | AA32: =SUM(T32:Z32) -> 69 | AC32: =SUM(I32+R32+AA32) -> 74
A33: 11:15:00 | B33: 0 | C33: 0 | D33: 0 | E33: 0 | F33: 0 | G33: 0 | H33: 0 | I33: =SUM(B33:H33) -> 0 | K33: 1 | L33: 0 | M33: 0 | N33: 0 | O33: 1 | P33: 0 | Q33: 0 | R33: =SUM(K33:Q33) -> 2 | T33: 37 | U33: 10 | V33: 0 | W33: 0 | X33: 2 | Y33: 2 | Z33: 0 | AA33: =SUM(T33:Z33) -> 51 | AC33: =SUM(I33+R33+AA33) -> 53
A34: 11:30:00 | B34: 1 | C34: 0 | D34: 0 | E34: 0 | F34: 0 | G34: 0 | H34: 0 | I34: =SUM(B34:H34) -> 1 | K34: 3 | L34: 1 | M34: 0 | N34: 0 | O34: 1 | P34: 0 | Q34: 2 | R34: =SUM(K34:Q34) -> 7 | T34: 42 | U34: 11 | V34: 1 | W34: 0 | X34: 3 | Y34: 5 | Z34: 1 | AA34: =SUM(T34:Z34) -> 63 | AC34: =SUM(I34+R34+AA34) -> 71
A35: 11:45:00 | B35: 0 | C35: 0 | D35: 0 | E35: 0 | F35: 0 | G35: 0 | H35: 0 | I35: =SUM(B35:H35) -> 0 | K35: 0 | L35: 0 | M35: 0 | N35: 0 | O35: 1 | P35: 0 | Q35: 1 | R35: =SUM(K35:Q35) -> 2 | T35: 60 | U35: 15 | V35: 1 | W35: 0 | X35: 3 | Y35: 6 | Z35: 1 | AA35: =SUM(T35:Z35) -> 86 | AC35: =SUM(I35+R35+AA35) -> 88
A36: 1 Hr | B36: =SUM(B32:B35) -> 1 | C36: 0 | D36: 0 | E36: 0 | F36: 0 | G36: 0 | H36: 0 | I36: 1 | K36: =SUM(K32:K35) -> 4 | L36: 3 | M36: 0 | N36: 0 | O36: 4 | P36: 0 | Q36: 5 | R36: 16 | T36: =SUM(T32:T35) -> 182 | U36: 52 | V36: 2 | W36: 0 | X36: 11 | Y36: 20 | Z36: 2 | AA36: 269 | AC36: =SUM(AC32:AC35) -> 286
A37: 12:00:00 | B37: 0 | C37: 0 | D37: 0 | E37: 0 | F37: 0 | G37: 0 | H37: 0 | I37: =SUM(B37:H37) -> 0 | K37: 0 | L37: 0 | M37: 0 | N37: 0 | O37: 0 | P37: 0 | Q37: 1 | R37: =SUM(K37:Q37) -> 1 | T37: 53 | U37: 11 | V37: 2 | W37: 0 | X37: 1 | Y37: 1 | Z37: 0 | AA37: =SUM(T37:Z37) -> 68 | AC37: =SUM(I37+R37+AA37) -> 69
A38: 12:15:00 | B38: 0 | C38: 0 | D38: 0 | E38: 0 | F38: 0 | G38: 0 | H38: 0 | I38: =SUM(B38:H38) -> 0 | K38: 2 | L38: 0 | M38: 0 | N38: 0 | O38: 2 | P38: 1 | Q38: 0 | R38: =SUM(K38:Q38) -> 5 | T38: 53 | U38: 14 | V38: 0 | W38: 0 | X38: 2 | Y38: 5 | Z38: 0 | AA38: =SUM(T38:Z38) -> 74 | AC38: =SUM(I38+R38+AA38) -> 79
A39: 12:30:00 | B39: 0 | C39: 0 | D39: 0 | E39: 0 | F39: 0 | G39: 0 | H39: 0 | I39: =SUM(B39:H39) -> 0 | K39: 0 | L39: 1 | M39: 0 | N39: 0 | O39: 0 | P39: 0 | Q39: 2 | R39: =SUM(K39:Q39) -> 3 | T39: 55 | U39: 13 | V39: 3 | W39: 0 | X39: 3 | Y39: 4 | Z39: 1 | AA39: =SUM(T39:Z39) -> 79 | AC39: =SUM(I39+R39+AA39) -> 82
A40: 12:45:00 | B40: 0 | C40: 0 | D40: 0 | E40: 0 | F40: 0 | G40: 1 | H40: 0 | I40: =SUM(B40:H40) -> 1 | K40: 1 | L40: 3 | M40: 0 | N40: 0 | O40: 1 | P40: 0 | Q40: 1 | R40: =SUM(K40:Q40) -> 6 | T40: 60 | U40: 12 | V40: 1 | W40: 0 | X40: 4 | Y40: 0 | Z40: 3 | AA40: =SUM(T40:Z40) -> 80 | AC40: =SUM(I40+R40+AA40) -> 87
A41: 1 Hr | B41: =SUM(B37:B40) -> 0 | C41: 0 | D41: 0 | E41: 0 | F41: 0 | G41: 1 | H41: 0 | I41: 1 | K41: =SUM(K37:K40) -> 3 | L41: 4 | M41: 0 | N41: 0 | O41: 3 | P41: 1 | Q41: 4 | R41: 15 | T41: =SUM(T37:T40) -> 221 | U41: 50 | V41: 6 | W41: 0 | X41: 10 | Y41: 10 | Z41: 4 | AA41: 301 | AC41: =SUM(AC37:AC40) -> 317
A42: 13:00:00 | B42: 0 | C42: 0 | D42: 0 | E42: 0 | F42: 0 | G42: 0 | H42: 0 | I42: =SUM(B42:H42) -> 0 | K42: 5 | L42: 1 | M42: 0 | N42: 0 | O42: 1 | P42: 0 | Q42: 0 | R42: =SUM(K42:Q42) -> 7 | T42: 60 | U42: 9 | V42: 2 | W42: 0 | X42: 3 | Y42: 7 | Z42: 0 | AA42: =SUM(T42:Z42) -> 81 | AC42: =SUM(I42+R42+AA42) -> 88
A43: 13:15:00 | B43: 1 | C43: 1 | D43: 0 | E43: 0 | F43: 0 | G43: 0 | H43: 0 | I43: =SUM(B43:H43) -> 2 | K43: 1 | L43: 0 | M43: 0 | N43: 0 | O43: 1 | P43: 0 | Q43: 1 | R43: =SUM(K43:Q43) -> 3 | T43: 57 | U43: 16 | V43: 2 | W43: 0 | X43: 3 | Y43: 6 | Z43: 2 | AA43: =SUM(T43:Z43) -> 86 | AC43: =SUM(I43+R43+AA43) -> 91
A44: 13:30:00 | B44: 0 | C44: 0 | D44: 0 | E44: 0 | F44: 0 | G44: 0 | H44: 0 | I44: =SUM(B44:H44) -> 0 | K44: 2 | L44: 0 | M44: 0 | N44: 0 | O44: 1 | P44: 0 | Q44: 2 | R44: =SUM(K44:Q44) -> 5 | T44: 59 | U44: 10 | V44: 3 | W44: 0 | X44: 2 | Y44: 5 | Z44: 3 | AA44: =SUM(T44:Z44) -> 82 | AC44: =SUM(I44+R44+AA44) -> 87
A45: 13:45:00 | B45: 0 | C45: 0 | D45: 0 | E45: 0 | F45: 0 | G45: 0 | H45: 0 | I45: =SUM(B45:H45) -> 0 | K45: 4 | L45: 2 | M45: 0 | N45: 0 | O45: 1 | P45: 1 | Q45: 2 | R45: =SUM(K45:Q45) -> 10 | T45: 50 | U45: 13 | V45: 2 | W45: 1 | X45: 2 | Y45: 5 | Z45: 2 | AA45: =SUM(T45:Z45) -> 75 | AC45: =SUM(I45+R45+AA45) -> 85
A46: 1 Hr | B46: =SUM(B42:B45) -> 1 | C46: 1 | D46: 0 | E46: 0 | F46: 0 | G46: 0 | H46: 0 | I46: 2 | K46: =SUM(K42:K45) -> 12 | L46: 3 | M46: 0 | N46: 0 | O46: 4 | P46: 1 | Q46: 5 | R46: 25 | T46: =SUM(T42:T45) -> 226 | U46: 48 | V46: 9 | W46: 1 | X46: 10 | Y46: 23 | Z46: 7 | AA46: 324 | AC46: =SUM(AC42:AC45) -> 351
A47: 14:00:00 | B47: 0 | C47: 0 | D47: 0 | E47: 0 | F47: 0 | G47: 0 | H47: 0 | I47: =SUM(B47:H47) -> 0 | K47: 0 | L47: 0 | M47: 0 | N47: 0 | O47: 1 | P47: 0 | Q47: 1 | R47: =SUM(K47:Q47) -> 2 | T47: 51 | U47: 13 | V47: 0 | W47: 0 | X47: 4 | Y47: 10 | Z47: 1 | AA47: =SUM(T47:Z47) -> 79 | AC47: =SUM(I47+R47+AA47) -> 81
A48: 14:15:00 | B48: 0 | C48: 0 | D48: 0 | E48: 0 | F48: 0 | G48: 0 | H48: 0 | I48: =SUM(B48:H48) -> 0 | K48: 2 | L48: 1 | M48: 0 | N48: 0 | O48: 0 | P48: 0 | Q48: 2 | R48: =SUM(K48:Q48) -> 5 | T48: 82 | U48: 8 | V48: 1 | W48: 0 | X48: 5 | Y48: 4 | Z48: 2 | AA48: =SUM(T48:Z48) -> 102 | AC48: =SUM(I48+R48+AA48) -> 107
A49: 14:30:00 | B49: 0 | C49: 0 | D49: 0 | E49: 0 | F49: 0 | G49: 0 | H49: 0 | I49: =SUM(B49:H49) -> 0 | K49: 3 | L49: 1 | M49: 0 | N49: 0 | O49: 1 | P49: 0 | Q49: 1 | R49: =SUM(K49:Q49) -> 6 | T49: 49 | U49: 13 | V49: 0 | W49: 0 | X49: 1 | Y49: 8 | Z49: 0 | AA49: =SUM(T49:Z49) -> 71 | AC49: =SUM(I49+R49+AA49) -> 77
A50: 14:45:00 | B50: 0 | C50: 0 | D50: 0 | E50: 0 | F50: 0 | G50: 0 | H50: 0 | I50: =SUM(B50:H50) -> 0 | K50: 0 | L50: 0 | M50: 0 | N50: 0 | O50: 1 | P50: 0 | Q50: 0 | R50: =SUM(K50:Q50) -> 1 | T50: 61 | U50: 9 | V50: 1 | W50: 1 | X50: 3 | Y50: 6 | Z50: 1 | AA50: =SUM(T50:Z50) -> 82 | AC50: =SUM(I50+R50+AA50) -> 83
A51: 1 Hr | B51: =SUM(B47:B50) -> 0 | C51: 0 | D51: 0 | E51: 0 | F51: 0 | G51: 0 | H51: 0 | I51: 0 | K51: =SUM(K47:K50) -> 5 | L51: 2 | M51: 0 | N51: 0 | O51: 3 | P51: 0 | Q51: 4 | R51: 14 | T51: =SUM(T47:T50) -> 243 | U51: 43 | V51: 2 | W51: 1 | X51: 13 | Y51: 28 | Z51: 4 | AA51: 334 | AC51: =SUM(AC47:AC50) -> 348
A52: 15:00:00 | B52: 0 | C52: 0 | D52: 0 | E52: 0 | F52: 0 | G52: 0 | H52: 0 | I52: =SUM(B52:H52) -> 0 | K52: 3 | L52: 0 | M52: 0 | N52: 0 | O52: 1 | P52: 1 | Q52: 0 | R52: =SUM(K52:Q52) -> 5 | T52: 66 | U52: 19 | V52: 3 | W52: 0 | X52: 3 | Y52: 7 | Z52: 1 | AA52: =SUM(T52:Z52) -> 99 | AC52: =SUM(I52+R52+AA52) -> 104
A53: 15:15:00 | B53: 0 | C53: 0 | D53: 0 | E53: 0 | F53: 0 | G53: 0 | H53: 0 | I53: =SUM(B53:H53) -> 0 | K53: 1 | L53: 1 | M53: 0 | N53: 0 | O53: 1 | P53: 0 | Q53: 1 | R53: =SUM(K53:Q53) -> 4 | T53: 76 | U53: 16 | V53: 2 | W53: 0 | X53: 2 | Y53: 4 | Z53: 1 | AA53: =SUM(T53:Z53) -> 101 | AC53: =SUM(I53+R53+AA53) -> 105
A54: 15:30:00 | B54: 0 | C54: 0 | D54: 0 | E54: 0 | F54: 0 | G54: 0 | H54: 0 | I54: =SUM(B54:H54) -> 0 | K54: 2 | L54: 0 | M54: 0 | N54: 0 | O54: 1 | P54: 0 | Q54: 3 | R54: =SUM(K54:Q54) -> 6 | T54: 55 | U54: 12 | V54: 2 | W54: 0 | X54: 2 | Y54: 4 | Z54: 5 | AA54: =SUM(T54:Z54) -> 80 | AC54: =SUM(I54+R54+AA54) -> 86
A55: 15:45:00 | B55: 1 | C55: 0 | D55: 0 | E55: 0 | F55: 0 | G55: 0 | H55: 0 | I55: =SUM(B55:H55) -> 1 | K55: 3 | L55: 0 | M55: 0 | N55: 0 | O55: 0 | P55: 2 | Q55: 0 | R55: =SUM(K55:Q55) -> 5 | T55: 77 | U55: 15 | V55: 1 | W55: 0 | X55: 2 | Y55: 6 | Z55: 2 | AA55: =SUM(T55:Z55) -> 103 | AC55: =SUM(I55+R55+AA55) -> 109
A56: 1 Hr | B56: =SUM(B52:B55) -> 1 | C56: 0 | D56: 0 | E56: 0 | F56: 0 | G56: 0 | H56: 0 | I56: 1 | K56: =SUM(K52:K55) -> 9 | L56: 1 | M56: 0 | N56: 0 | O56: 3 | P56: 3 | Q56: 4 | R56: 20 | T56: =SUM(T52:T55) -> 274 | U56: 62 | V56: 8 | W56: 0 | X56: 9 | Y56: 21 | Z56: 9 | AA56: 383 | AC56: =SUM(AC52:AC55) -> 404
A57: 16:00:00 | B57: 0 | C57: 0 | D57: 0 | E57: 0 | F57: 0 | G57: 0 | H57: 0 | I57: =SUM(B57:H57) -> 0 | K57: 7 | L57: 0 | M57: 0 | N57: 0 | O57: 0 | P57: 1 | Q57: 2 | R57: =SUM(K57:Q57) -> 10 | T57: 75 | U57: 16 | V57: 0 | W57: 0 | X57: 3 | Y57: 2 | Z57: 3 | AA57: =SUM(T57:Z57) -> 99 | AC57: =SUM(I57+R57+AA57) -> 109
A58: 16:15:00 | B58: 0 | C58: 0 | D58: 0 | E58: 0 | F58: 0 | G58: 0 | H58: 0 | I58: =SUM(B58:H58) -> 0 | K58: 2 | L58: 1 | M58: 0 | N58: 0 | O58: 3 | P58: 1 | Q58: 3 | R58: =SUM(K58:Q58) -> 10 | T58: 66 | U58: 13 | V58: 5 | W58: 0 | X58: 3 | Y58: 2 | Z58: 2 | AA58: =SUM(T58:Z58) -> 91 | AC58: =SUM(I58+R58+AA58) -> 101
A59: 16:30:00 | B59: 1 | C59: 0 | D59: 0 | E59: 0 | F59: 0 | G59: 0 | H59: 0 | I59: =SUM(B59:H59) -> 1 | K59: 2 | L59: 0 | M59: 0 | N59: 0 | O59: 1 | P59: 0 | Q59: 2 | R59: =SUM(K59:Q59) -> 5 | T59: 55 | U59: 13 | V59: 0 | W59: 0 | X59: 2 | Y59: 2 | Z59: 8 | AA59: =SUM(T59:Z59) -> 80 | AC59: =SUM(I59+R59+AA59) -> 86
A60: 16:45:00 | B60: 0 | C60: 0 | D60: 0 | E60: 0 | F60: 0 | G60: 0 | H60: 0 | I60: =SUM(B60:H60) -> 0 | K60: 4 | L60: 0 | M60: 0 | N60: 0 | O60: 1 | P60: 1 | Q60: 1 | R60: =SUM(K60:Q60) -> 7 | T60: 64 | U60: 13 | V60: 1 | W60: 0 | X60: 1 | Y60: 7 | Z60: 6 | AA60: =SUM(T60:Z60) -> 92 | AC60: =SUM(I60+R60+AA60) -> 99
A61: 1 Hr | B61: =SUM(B57:B60) -> 1 | C61: 0 | D61: 0 | E61: 0 | F61: 0 | G61: 0 | H61: 0 | I61: 1 | K61: =SUM(K57:K60) -> 15 | L61: 1 | M61: 0 | N61: 0 | O61: 5 | P61: 3 | Q61: 8 | R61: 32 | T61: =SUM(T57:T60) -> 260 | U61: 55 | V61: 6 | W61: 0 | X61: 9 | Y61: 13 | Z61: 19 | AA61: 362 | AC61: =SUM(AC57:AC60) -> 395
A62: 17:00:00 | B62: 1 | C62: 0 | D62: 0 | E62: 0 | F62: 0 | G62: 0 | H62: 0 | I62: =SUM(B62:H62) -> 1 | K62: 5 | L62: 0 | M62: 0 | N62: 0 | O62: 1 | P62: 1 | Q62: 4 | R62: =SUM(K62:Q62) -> 11 | T62: 73 | U62: 16 | V62: 0 | W62: 0 | X62: 4 | Y62: 3 | Z62: 6 | AA62: =SUM(T62:Z62) -> 102 | AC62: =SUM(I62+R62+AA62) -> 114
A63: 17:15:00 | B63: 0 | C63: 0 | D63: 0 | E63: 0 | F63: 0 | G63: 0 | H63: 0 | I63: =SUM(B63:H63) -> 0 | K63: 4 | L63: 0 | M63: 0 | N63: 0 | O63: 0 | P63: 1 | Q63: 1 | R63: =SUM(K63:Q63) -> 6 | T63: 63 | U63: 9 | V63: 1 | W63: 0 | X63: 3 | Y63: 9 | Z63: 5 | AA63: =SUM(T63:Z63) -> 90 | AC63: =SUM(I63+R63+AA63) -> 96
A64: 17:30:00 | B64: 0 | C64: 0 | D64: 0 | E64: 0 | F64: 0 | G64: 0 | H64: 0 | I64: =SUM(B64:H64) -> 0 | K64: 2 | L64: 1 | M64: 0 | N64: 0 | O64: 1 | P64: 1 | Q64: 0 | R64: =SUM(K64:Q64) -> 5 | T64: 82 | U64: 8 | V64: 1 | W64: 0 | X64: 2 | Y64: 6 | Z64: 4 | AA64: =SUM(T64:Z64) -> 103 | AC64: =SUM(I64+R64+AA64) -> 108
A65: 17:45:00 | B65: 0 | C65: 0 | D65: 0 | E65: 0 | F65: 0 | G65: 0 | H65: 0 | I65: =SUM(B65:H65) -> 0 | K65: 1 | L65: 0 | M65: 0 | N65: 0 | O65: 1 | P65: 0 | Q65: 2 | R65: =SUM(K65:Q65) -> 4 | T65: 80 | U65: 5 | V65: 1 | W65: 0 | X65: 3 | Y65: 5 | Z65: 9 | AA65: =SUM(T65:Z65) -> 103 | AC65: =SUM(I65+R65+AA65) -> 107
A66: 1 Hr | B66: =SUM(B62:B65) -> 1 | C66: 0 | D66: 0 | E66: 0 | F66: 0 | G66: 0 | H66: 0 | I66: 1 | K66: =SUM(K62:K65) -> 12 | L66: 1 | M66: 0 | N66: 0 | O66: 3 | P66: 3 | Q66: 7 | R66: 26 | T66: =SUM(T62:T65) -> 298 | U66: 38 | V66: 3 | W66: 0 | X66: 12 | Y66: 23 | Z66: 24 | AA66: 398 | AC66: =SUM(AC62:AC65) -> 425
A67: 18:00:00 | B67: 0 | C67: 0 | D67: 0 | E67: 0 | F67: 0 | G67: 0 | H67: 0 | I67: =SUM(B67:H67) -> 0 | K67: 8 | L67: 1 | M67: 0 | N67: 0 | O67: 1 | P67: 1 | Q67: 1 | R67: =SUM(K67:Q67) -> 12 | T67: 76 | U67: 6 | V67: 1 | W67: 0 | X67: 2 | Y67: 5 | Z67: 4 | AA67: =SUM(T67:Z67) -> 94 | AC67: =SUM(I67+R67+AA67) -> 106
A68: 18:15:00 | B68: 0 | C68: 0 | D68: 0 | E68: 0 | F68: 0 | G68: 0 | H68: 0 | I68: =SUM(B68:H68) -> 0 | K68: 3 | L68: 0 | M68: 0 | N68: 0 | O68: 1 | P68: 0 | Q68: 2 | R68: =SUM(K68:Q68) -> 6 | T68: 70 | U68: 7 | V68: 0 | W68: 0 | X68: 2 | Y68: 3 | Z68: 1 | AA68: =SUM(T68:Z68) -> 83 | AC68: =SUM(I68+R68+AA68) -> 89
A69: 18:30:00 | B69: 0 | C69: 0 | D69: 0 | E69: 0 | F69: 0 | G69: 0 | H69: 0 | I69: =SUM(B69:H69) -> 0 | K69: 6 | L69: 0 | M69: 0 | N69: 0 | O69: 1 | P69: 1 | Q69: 2 | R69: =SUM(K69:Q69) -> 10 | T69: 71 | U69: 8 | V69: 1 | W69: 0 | X69: 2 | Y69: 5 | Z69: 9 | AA69: =SUM(T69:Z69) -> 96 | AC69: =SUM(I69+R69+AA69) -> 106
A70: 18:45:00 | B70: 1 | C70: 0 | D70: 0 | E70: 0 | F70: 0 | G70: 0 | H70: 0 | I70: =SUM(B70:H70) -> 1 | K70: 6 | L70: 0 | M70: 0 | N70: 0 | O70: 1 | P70: 1 | Q70: 0 | R70: =SUM(K70:Q70) -> 8 | T70: 67 | U70: 3 | V70: 0 | W70: 0 | X70: 1 | Y70: 12 | Z70: 6 | AA70: =SUM(T70:Z70) -> 89 | AC70: =SUM(I70+R70+AA70) -> 98
A71: 1 Hr | B71: =SUM(B67:B70) -> 1 | C71: 0 | D71: 0 | E71: 0 | F71: 0 | G71: 0 | H71: 0 | I71: 1 | K71: =SUM(K67:K70) -> 23 | L71: 1 | M71: 0 | N71: 0 | O71: 4 | P71: 3 | Q71: 5 | R71: 36 | T71: =SUM(T67:T70) -> 284 | U71: 24 | V71: 2 | W71: 0 | X71: 7 | Y71: 25 | Z71: 20 | AA71: 362 | AC71: =SUM(AC67:AC70) -> 399
A73: Total | B73: =SUM(B71+B66+B61+B56+B51+B46+B41+B36+B31+B26+B21+B16) -> 7 | C73: 1 | D73: 0 | E73: 0 | F73: 0 | G73: 1 | H73: 0 | I73: 9 | K73: =SUM(K71+K66+K61+K56+K51+K46+K41+K36+K31+K26+K21+K16) -> 109 | L73: 25 | M73: 0 | N73: 0 | O73: 44 | P73: 14 | Q73: 67 | R73: 259 | T73: =SUM(T71+T66+T61+T56+T51+T46+T41+T36+T31+T26+T21+T16) -> 2736 | U73: 515 | V73: 51 | W73: 2 | X73: 127 | Y73: 190 | Z73: 116 | AA73: 3737 | AC73: =SUM(AC71+AC66+AC61+AC56+AC51+AC46+AC41+AC36+AC31+AC26+AC21+AC16) -> 4005
A75: Origin : | B75: Arm B | C75: Fisher's Lane
B76: Destination : | D76: Arm A | E76: A409 South Parade (E) | I76: Total | K76: Destination : | M76: Arm B | N76: Fisher's Lane | R76: Total | T76: Destination : | V76: Arm C | W76: A409 South Parade (W) | AA76: Total | AC76: Arm Totals
B77: =$B$10 -> Car | C77: =$C$10 -> LGV | D77: =$D$10 -> OGV1 | E77: =$E$10 -> OGV2 | F77: =$F$10 -> PSV | G77: =$G$10 -> MC | H77: =$H$10 -> PC | K77: =$B$10 -> Car | L77: =$C$10 -> LGV | M77: =$D$10 -> OGV1 | N77: =$E$10 -> OGV2 | O77: =$F$10 -> PSV | P77: =$G$10 -> MC | Q77: =$H$10 -> PC | T77: =$B$10 -> Car | U77: =$C$10 -> LGV | V77: =$D$10 -> OGV1 | W77: =$E$10 -> OGV2 | X77: =$F$10 -> PSV | Y77: =$G$10 -> MC | Z77: =$H$10 -> PC
A79: 07:00:00 | B79: 2 | C79: 0 | D79: 0 | E79: 0 | F79: 1 | G79: 0 | H79: 0 | I79: =SUM(B79:H79) -> 3 | K79: 0 | L79: 0 | M79: 0 | N79: 0 | O79: 0 | P79: 0 | Q79: 0 | R79: =SUM(K79:Q79) -> 0 | T79: 0 | U79: 0 | V79: 0 | W79: 0 | X79: 0 | Y79: 0 | Z79: 0 | AA79: =SUM(T79:Z79) -> 0 | AC79: =SUM(I79+R79+AA79) -> 3
A80: 07:15:00 | B80: 0 | C80: 0 | D80: 0 | E80: 0 | F80: 1 | G80: 0 | H80: 2 | I80: =SUM(B80:H80) -> 3 | K80: 0 | L80: 0 | M80: 0 | N80: 0 | O80: 0 | P80: 0 | Q80: 0 | R80: =SUM(K80:Q80) -> 0 | T80: 1 | U80: 1 | V80: 0 | W80: 0 | X80: 0 | Y80: 1 | Z80: 0 | AA80: =SUM(T80:Z80) -> 3 | AC80: =SUM(I80+R80+AA80) -> 6
A81: 07:30:00 | B81: 0 | C81: 0 | D81: 0 | E81: 0 | F81: 1 | G81: 1 | H81: 1 | I81: =SUM(B81:H81) -> 3 | K81: 0 | L81: 0 | M81: 0 | N81: 0 | O81: 0 | P81: 0 | Q81: 0 | R81: =SUM(K81:Q81) -> 0 | T81: 4 | U81: 0 | V81: 0 | W81: 0 | X81: 0 | Y81: 0 | Z81: 4 | AA81: =SUM(T81:Z81) -> 8 | AC81: =SUM(I81+R81+AA81) -> 11
A82: 07:45:00 | B82: 2 | C82: 1 | D82: 0 | E82: 0 | F82: 1 | G82: 0 | H82: 1 | I82: =SUM(B82:H82) -> 5 | K82: 0 | L82: 0 | M82: 0 | N82: 0 | O82: 0 | P82: 0 | Q82: 0 | R82: =SUM(K82:Q82) -> 0 | T82: 0 | U82: 0 | V82: 0 | W82: 0 | X82: 0 | Y82: 0 | Z82: 2 | AA82: =SUM(T82:Z82) -> 2 | AC82: =SUM(I82+R82+AA82) -> 7
A83: 1 Hr | B83: =SUM(B79:B82) -> 4 | C83: 1 | D83: 0 | E83: 0 | F83: 4 | G83: 1 | H83: 4 | I83: 14 | K83: =SUM(K79:K82) -> 0 | L83: 0 | M83: 0 | N83: 0 | O83: 0 | P83: 0 | Q83: 0 | R83: 0 | T83: =SUM(T79:T82) -> 5 | U83: 1 | V83: 0 | W83: 0 | X83: 0 | Y83: 1 | Z83: 6 | AA83: 13 | AC83: =SUM(AC79:AC82) -> 27
A84: 08:00:00 | B84: 1 | C84: 0 | D84: 0 | E84: 0 | F84: 1 | G84: 0 | H84: 1 | I84: =SUM(B84:H84) -> 3 | K84: 0 | L84: 0 | M84: 0 | N84: 0 | O84: 0 | P84: 0 | Q84: 0 | R84: =SUM(K84:Q84) -> 0 | T84: 0 | U84: 0 | V84: 0 | W84: 0 | X84: 0 | Y84: 1 | Z84: 2 | AA84: =SUM(T84:Z84) -> 3 | AC84: =SUM(I84+R84+AA84) -> 6
A85: 08:15:00 | B85: 2 | C85: 0 | D85: 0 | E85: 0 | F85: 1 | G85: 0 | H85: 0 | I85: =SUM(B85:H85) -> 3 | K85: 0 | L85: 0 | M85: 0 | N85: 0 | O85: 0 | P85: 0 | Q85: 0 | R85: =SUM(K85:Q85) -> 0 | T85: 0 | U85: 0 | V85: 0 | W85: 0 | X85: 0 | Y85: 1 | Z85: 4 | AA85: =SUM(T85:Z85) -> 5 | AC85: =SUM(I85+R85+AA85) -> 8
A86: 08:30:00 | B86: 2 | C86: 1 | D86: 0 | E86: 0 | F86: 1 | G86: 0 | H86: 1 | I86: =SUM(B86:H86) -> 5 | K86: 0 | L86: 0 | M86: 0 | N86: 0 | O86: 0 | P86: 0 | Q86: 0 | R86: =SUM(K86:Q86) -> 0 | T86: 1 | U86: 0 | V86: 0 | W86: 0 | X86: 0 | Y86: 0 | Z86: 2 | AA86: =SUM(T86:Z86) -> 3 | AC86: =SUM(I86+R86+AA86) -> 8
A87: 08:45:00 | B87: 3 | C87: 3 | D87: 0 | E87: 0 | F87: 1 | G87: 1 | H87: 2 | I87: =SUM(B87:H87) -> 10 | K87: 0 | L87: 0 | M87: 0 | N87: 0 | O87: 0 | P87: 0 | Q87: 0 | R87: =SUM(K87:Q87) -> 0 | T87: 2 | U87: 0 | V87: 0 | W87: 0 | X87: 0 | Y87: 0 | Z87: 4 | AA87: =SUM(T87:Z87) -> 6 | AC87: =SUM(I87+R87+AA87) -> 16
A88: 1 Hr | B88: =SUM(B84:B87) -> 8 | C88: 4 | D88: 0 | E88: 0 | F88: 4 | G88: 1 | H88: 4 | I88: 21 | K88: =SUM(K84:K87) -> 0 | L88: 0 | M88: 0 | N88: 0 | O88: 0 | P88: 0 | Q88: 0 | R88: 0 | T88: =SUM(T84:T87) -> 3 | U88: 0 | V88: 0 | W88: 0 | X88: 0 | Y88: 2 | Z88: 12 | AA88: 17 | AC88: =SUM(AC84:AC87) -> 38
A89: 09:00:00 | B89: 7 | C89: 1 | D89: 0 | E89: 0 | F89: 0 | G89: 0 | H89: 1 | I89: =SUM(B89:H89) -> 9 | K89: 0 | L89: 0 | M89: 0 | N89: 0 | O89: 0 | P89: 0 | Q89: 0 | R89: =SUM(K89:Q89) -> 0 | T89: 0 | U89: 0 | V89: 0 | W89: 0 | X89: 0 | Y89: 0 | Z89: 4 | AA89: =SUM(T89:Z89) -> 4 | AC89: =SUM(I89+R89+AA89) -> 13
A90: 09:15:00 | B90: 2 | C90: 2 | D90: 0 | E90: 0 | F90: 1 | G90: 0 | H90: 5 | I90: =SUM(B90:H90) -> 10 | K90: 0 | L90: 0 | M90: 0 | N90: 0 | O90: 0 | P90: 0 | Q90: 0 | R90: =SUM(K90:Q90) -> 0 | T90: 3 | U90: 0 | V90: 0 | W90: 0 | X90: 0 | Y90: 0 | Z90: 1 | AA90: =SUM(T90:Z90) -> 4 | AC90: =SUM(I90+R90+AA90) -> 14
A91: 09:30:00 | B91: 4 | C91: 0 | D91: 0 | E91: 0 | F91: 1 | G91: 0 | H91: 0 | I91: =SUM(B91:H91) -> 5 | K91: 0 | L91: 0 | M91: 0 | N91: 0 | O91: 0 | P91: 0 | Q91: 0 | R91: =SUM(K91:Q91) -> 0 | T91: 3 | U91: 1 | V91: 0 | W91: 0 | X91: 0 | Y91: 0 | Z91: 0 | AA91: =SUM(T91:Z91) -> 4 | AC91: =SUM(I91+R91+AA91) -> 9
A92: 09:45:00 | B92: 2 | C92: 0 | D92: 0 | E92: 0 | F92: 1 | G92: 1 | H92: 4 | I92: =SUM(B92:H92) -> 8 | K92: 0 | L92: 0 | M92: 0 | N92: 0 | O92: 0 | P92: 0 | Q92: 0 | R92: =SUM(K92:Q92) -> 0 | T92: 0 | U92: 1 | V92: 0 | W92: 0 | X92: 0 | Y92: 0 | Z92: 0 | AA92: =SUM(T92:Z92) -> 1 | AC92: =SUM(I92+R92+AA92) -> 9
A93: 1 Hr | B93: =SUM(B89:B92) -> 15 | C93: 3 | D93: 0 | E93: 0 | F93: 3 | G93: 1 | H93: 10 | I93: 32 | K93: =SUM(K89:K92) -> 0 | L93: 0 | M93: 0 | N93: 0 | O93: 0 | P93: 0 | Q93: 0 | R93: 0 | T93: =SUM(T89:T92) -> 6 | U93: 2 | V93: 0 | W93: 0 | X93: 0 | Y93: 0 | Z93: 5 | AA93: 13 | AC93: =SUM(AC89:AC92) -> 45
A94: 10:00:00 | B94: 3 | C94: 0 | D94: 0 | E94: 0 | F94: 1 | G94: 0 | H94: 2 | I94: =SUM(B94:H94) -> 6 | K94: 0 | L94: 0 | M94: 0 | N94: 0 | O94: 0 | P94: 0 | Q94: 0 | R94: =SUM(K94:Q94) -> 0 | T94: 1 | U94: 1 | V94: 0 | W94: 0 | X94: 0 | Y94: 0 | Z94: 0 | AA94: =SUM(T94:Z94) -> 2 | AC94: =SUM(I94+R94+AA94) -> 8
A95: 10:15:00 | B95: 1 | C95: 1 | D95: 0 | E95: 0 | F95: 1 | G95: 0 | H95: 0 | I95: =SUM(B95:H95) -> 3 | K95: 0 | L95: 0 | M95: 0 | N95: 0 | O95: 0 | P95: 0 | Q95: 0 | R95: =SUM(K95:Q95) -> 0 | T95: 0 | U95: 1 | V95: 0 | W95: 0 | X95: 0 | Y95: 0 | Z95: 2 | AA95: =SUM(T95:Z95) -> 3 | AC95: =SUM(I95+R95+AA95) -> 6
A96: 10:30:00 | B96: 3 | C96: 2 | D96: 0 | E96: 0 | F96: 1 | G96: 0 | H96: 2 | I96: =SUM(B96:H96) -> 8 | K96: 0 | L96: 0 | M96: 0 | N96: 0 | O96: 0 | P96: 0 | Q96: 0 | R96: =SUM(K96:Q96) -> 0 | T96: 1 | U96: 0 | V96: 0 | W96: 0 | X96: 0 | Y96: 1 | Z96: 1 | AA96: =SUM(T96:Z96) -> 3 | AC96: =SUM(I96+R96+AA96) -> 11
A97: 10:45:00 | B97: 1 | C97: 0 | D97: 0 | E97: 0 | F97: 1 | G97: 0 | H97: 0 | I97: =SUM(B97:H97) -> 2 | K97: 0 | L97: 0 | M97: 0 | N97: 0 | O97: 0 | P97: 0 | Q97: 0 | R97: =SUM(K97:Q97) -> 0 | T97: 5 | U97: 3 | V97: 0 | W97: 0 | X97: 0 | Y97: 0 | Z97: 2 | AA97: =SUM(T97:Z97) -> 10 | AC97: =SUM(I97+R97+AA97) -> 12
A98: 1 Hr | B98: =SUM(B94:B97) -> 8 | C98: 3 | D98: 0 | E98: 0 | F98: 4 | G98: 0 | H98: 4 | I98: 19 | K98: =SUM(K94:K97) -> 0 | L98: 0 | M98: 0 | N98: 0 | O98: 0 | P98: 0 | Q98: 0 | R98: 0 | T98: =SUM(T94:T97) -> 7 | U98: 5 | V98: 0 | W98: 0 | X98: 0 | Y98: 1 | Z98: 5 | AA98: 18 | AC98: =SUM(AC94:AC97) -> 37
A99: 11:00:00 | B99: 5 | C99: 1 | D99: 0 | E99: 0 | F99: 1 | G99: 0 | H99: 2 | I99: =SUM(B99:H99) -> 9 | K99: 0 | L99: 0 | M99: 0 | N99: 0 | O99: 0 | P99: 0 | Q99: 0 | R99: =SUM(K99:Q99) -> 0 | T99: 2 | U99: 1 | V99: 0 | W99: 0 | X99: 0 | Y99: 0 | Z99: 1 | AA99: =SUM(T99:Z99) -> 4 | AC99: =SUM(I99+R99+AA99) -> 13
A100: 11:15:00 | B100: 1 | C100: 0 | D100: 0 | E100: 0 | F100: 1 | G100: 2 | H100: 3 | I100: =SUM(B100:H100) -> 7 | K100: 0 | L100: 0 | M100: 0 | N100: 0 | O100: 0 | P100: 0 | Q100: 0 | R100: =SUM(K100:Q100) -> 0 | T100: 2 | U100: 0 | V100: 0 | W100: 0 | X100: 0 | Y100: 1 | Z100: 2 | AA100: =SUM(T100:Z100) -> 5 | AC100: =SUM(I100+R100+AA100) -> 12
A101: 11:30:00 | B101: 1 | C101: 0 | D101: 0 | E101: 0 | F101: 0 | G101: 0 | H101: 0 | I101: =SUM(B101:H101) -> 1 | K101: 0 | L101: 0 | M101: 0 | N101: 0 | O101: 0 | P101: 0 | Q101: 0 | R101: =SUM(K101:Q101) -> 0 | T101: 4 | U101: 1 | V101: 0 | W101: 0 | X101: 0 | Y101: 0 | Z101: 2 | AA101: =SUM(T101:Z101) -> 7 | AC101: =SUM(I101+R101+AA101) -> 8
A102: 11:45:00 | B102: 7 | C102: 0 | D102: 0 | E102: 0 | F102: 1 | G102: 0 | H102: 1 | I102: =SUM(B102:H102) -> 9 | K102: 0 | L102: 0 | M102: 0 | N102: 0 | O102: 0 | P102: 0 | Q102: 0 | R102: =SUM(K102:Q102) -> 0 | T102: 3 | U102: 0 | V102: 0 | W102: 0 | X102: 0 | Y102: 1 | Z102: 4 | AA102: =SUM(T102:Z102) -> 8 | AC102: =SUM(I102+R102+AA102) -> 17
A103: 1 Hr | B103: =SUM(B99:B102) -> 14 | C103: 1 | D103: 0 | E103: 0 | F103: 3 | G103: 2 | H103: 6 | I103: 26 | K103: =SUM(K99:K102) -> 0 | L103: 0 | M103: 0 | N103: 0 | O103: 0 | P103: 0 | Q103: 0 | R103: 0 | T103: =SUM(T99:T102) -> 11 | U103: 2 | V103: 0 | W103: 0 | X103: 0 | Y103: 2 | Z103: 9 | AA103: 24 | AC103: =SUM(AC99:AC102) -> 50
A104: 12:00:00 | B104: 4 | C104: 1 | D104: 0 | E104: 0 | F104: 1 | G104: 2 | H104: 0 | I104: =SUM(B104:H104) -> 8 | K104: 0 | L104: 0 | M104: 0 | N104: 0 | O104: 0 | P104: 0 | Q104: 0 | R104: =SUM(K104:Q104) -> 0 | T104: 2 | U104: 0 | V104: 0 | W104: 0 | X104: 0 | Y104: 0 | Z104: 3 | AA104: =SUM(T104:Z104) -> 5 | AC104: =SUM(I104+R104+AA104) -> 13
A105: 12:15:00 | B105: 2 | C105: 1 | D105: 0 | E105: 0 | F105: 1 | G105: 1 | H105: 0 | I105: =SUM(B105:H105) -> 5 | K105: 0 | L105: 0 | M105: 0 | N105: 0 | O105: 0 | P105: 0 | Q105: 0 | R105: =SUM(K105:Q105) -> 0 | T105: 1 | U105: 1 | V105: 0 | W105: 0 | X105: 0 | Y105: 0 | Z105: 1 | AA105: =SUM(T105:Z105) -> 3 | AC105: =SUM(I105+R105+AA105) -> 8
A106: 12:30:00 | B106: 4 | C106: 1 | D106: 0 | E106: 0 | F106: 1 | G106: 1 | H106: 0 | I106: =SUM(B106:H106) -> 7 | K106: 0 | L106: 0 | M106: 0 | N106: 0 | O106: 0 | P106: 0 | Q106: 0 | R106: =SUM(K106:Q106) -> 0 | T106: 2 | U106: 0 | V106: 0 | W106: 0 | X106: 0 | Y106: 1 | Z106: 0 | AA106: =SUM(T106:Z106) -> 3 | AC106: =SUM(I106+R106+AA106) -> 10
A107: 12:45:00 | B107: 4 | C107: 0 | D107: 0 | E107: 0 | F107: 1 | G107: 0 | H107: 2 | I107: =SUM(B107:H107) -> 7 | K107: 0 | L107: 0 | M107: 0 | N107: 0 | O107: 0 | P107: 0 | Q107: 0 | R107: =SUM(K107:Q107) -> 0 | T107: 2 | U107: 1 | V107: 0 | W107: 0 | X107: 0 | Y107: 0 | Z107: 4 | AA107: =SUM(T107:Z107) -> 7 | AC107: =SUM(I107+R107+AA107) -> 14
A108: 1 Hr | B108: =SUM(B104:B107) -> 14 | C108: 3 | D108: 0 | E108: 0 | F108: 4 | G108: 4 | H108: 2 | I108: 27 | K108: =SUM(K104:K107) -> 0 | L108: 0 | M108: 0 | N108: 0 | O108: 0 | P108: 0 | Q108: 0 | R108: 0 | T108: =SUM(T104:T107) -> 7 | U108: 2 | V108: 0 | W108: 0 | X108: 0 | Y108: 1 | Z108: 8 | AA108: 18 | AC108: =SUM(AC104:AC107) -> 45
A109: 13:00:00 | B109: 5 | C109: 0 | D109: 0 | E109: 0 | F109: 1 | G109: 0 | H109: 3 | I109: =SUM(B109:H109) -> 9 | K109: 0 | L109: 0 | M109: 0 | N109: 0 | O109: 0 | P109: 0 | Q109: 0 | R109: =SUM(K109:Q109) -> 0 | T109: 3 | U109: 0 | V109: 0 | W109: 0 | X109: 0 | Y109: 0 | Z109: 2 | AA109: =SUM(T109:Z109) -> 5 | AC109: =SUM(I109+R109+AA109) -> 14
A110: 13:15:00 | B110: 2 | C110: 1 | D110: 0 | E110: 0 | F110: 0 | G110: 2 | H110: 1 | I110: =SUM(B110:H110) -> 6 | K110: 0 | L110: 0 | M110: 0 | N110: 0 | O110: 0 | P110: 0 | Q110: 0 | R110: =SUM(K110:Q110) -> 0 | T110: 4 | U110: 0 | V110: 0 | W110: 0 | X110: 0 | Y110: 0 | Z110: 2 | AA110: =SUM(T110:Z110) -> 6 | AC110: =SUM(I110+R110+AA110) -> 12
A111: 13:30:00 | B111: 2 | C111: 0 | D111: 0 | E111: 0 | F111: 2 | G111: 0 | H111: 1 | I111: =SUM(B111:H111) -> 5 | K111: 0 | L111: 0 | M111: 0 | N111: 0 | O111: 0 | P111: 0 | Q111: 0 | R111: =SUM(K111:Q111) -> 0 | T111: 5 | U111: 0 | V111: 0 | W111: 0 | X111: 0 | Y111: 0 | Z111: 2 | AA111: =SUM(T111:Z111) -> 7 | AC111: =SUM(I111+R111+AA111) -> 12
A112: 13:45:00 | B112: 0 | C112: 0 | D112: 0 | E112: 0 | F112: 0 | G112: 1 | H112: 2 | I112: =SUM(B112:H112) -> 3 | K112: 0 | L112: 0 | M112: 0 | N112: 0 | O112: 0 | P112: 0 | Q112: 0 | R112: =SUM(K112:Q112) -> 0 | T112: 1 | U112: 0 | V112: 0 | W112: 0 | X112: 0 | Y112: 0 | Z112: 1 | AA112: =SUM(T112:Z112) -> 2 | AC112: =SUM(I112+R112+AA112) -> 5
A113: 1 Hr | B113: =SUM(B109:B112) -> 9 | C113: 1 | D113: 0 | E113: 0 | F113: 3 | G113: 3 | H113: 7 | I113: 23 | K113: =SUM(K109:K112) -> 0 | L113: 0 | M113: 0 | N113: 0 | O113: 0 | P113: 0 | Q113: 0 | R113: 0 | T113: =SUM(T109:T112) -> 13 | U113: 0 | V113: 0 | W113: 0 | X113: 0 | Y113: 0 | Z113: 7 | AA113: 20 | AC113: =SUM(AC109:AC112) -> 43
A114: 14:00:00 | B114: 4 | C114: 0 | D114: 0 | E114: 0 | F114: 1 | G114: 2 | H114: 1 | I114: =SUM(B114:H114) -> 8 | K114: 0 | L114: 0 | M114: 0 | N114: 0 | O114: 0 | P114: 0 | Q114: 0 | R114: =SUM(K114:Q114) -> 0 | T114: 2 | U114: 0 | V114: 0 | W114: 0 | X114: 0 | Y114: 0 | Z114: 1 | AA114: =SUM(T114:Z114) -> 3 | AC114: =SUM(I114+R114+AA114) -> 11
A115: 14:15:00 | B115: 7 | C115: 0 | D115: 0 | E115: 0 | F115: 1 | G115: 0 | H115: 2 | I115: =SUM(B115:H115) -> 10 | K115: 0 | L115: 0 | M115: 0 | N115: 0 | O115: 0 | P115: 0 | Q115: 0 | R115: =SUM(K115:Q115) -> 0 | T115: 4 | U115: 0 | V115: 0 | W115: 0 | X115: 0 | Y115: 2 | Z115: 2 | AA115: =SUM(T115:Z115) -> 8 | AC115: =SUM(I115+R115+AA115) -> 18
A116: 14:30:00 | B116: 3 | C116: 0 | D116: 0 | E116: 0 | F116: 1 | G116: 0 | H116: 3 | I116: =SUM(B116:H116) -> 7 | K116: 0 | L116: 0 | M116: 0 | N116: 0 | O116: 0 | P116: 0 | Q116: 0 | R116: =SUM(K116:Q116) -> 0 | T116: 1 | U116: 0 | V116: 0 | W116: 0 | X116: 0 | Y116: 0 | Z116: 5 | AA116: =SUM(T116:Z116) -> 6 | AC116: =SUM(I116+R116+AA116) -> 13
A117: 14:45:00 | B117: 3 | C117: 0 | D117: 0 | E117: 0 | F117: 1 | G117: 0 | H117: 3 | I117: =SUM(B117:H117) -> 7 | K117: 0 | L117: 0 | M117: 0 | N117: 0 | O117: 0 | P117: 0 | Q117: 0 | R117: =SUM(K117:Q117) -> 0 | T117: 1 | U117: 0 | V117: 0 | W117: 0 | X117: 0 | Y117: 1 | Z117: 3 | AA117: =SUM(T117:Z117) -> 5 | AC117: =SUM(I117+R117+AA117) -> 12
A118: 1 Hr | B118: =SUM(B114:B117) -> 17 | C118: 0 | D118: 0 | E118: 0 | F118: 4 | G118: 2 | H118: 9 | I118: 32 | K118: =SUM(K114:K117) -> 0 | L118: 0 | M118: 0 | N118: 0 | O118: 0 | P118: 0 | Q118: 0 | R118: 0 | T118: =SUM(T114:T117) -> 8 | U118: 0 | V118: 0 | W118: 0 | X118: 0 | Y118: 3 | Z118: 11 | AA118: 22 | AC118: =SUM(AC114:AC117) -> 54
A119: 15:00:00 | B119: 6 | C119: 0 | D119: 0 | E119: 0 | F119: 1 | G119: 1 | H119: 0 | I119: =SUM(B119:H119) -> 8 | K119: 0 | L119: 0 | M119: 0 | N119: 0 | O119: 0 | P119: 0 | Q119: 0 | R119: =SUM(K119:Q119) -> 0 | T119: 5 | U119: 0 | V119: 0 | W119: 0 | X119: 0 | Y119: 0 | Z119: 2 | AA119: =SUM(T119:Z119) -> 7 | AC119: =SUM(I119+R119+AA119) -> 15
A120: 15:15:00 | B120: 2 | C120: 0 | D120: 0 | E120: 0 | F120: 2 | G120: 1 | H120: 1 | I120: =SUM(B120:H120) -> 6 | K120: 0 | L120: 0 | M120: 0 | N120: 0 | O120: 0 | P120: 0 | Q120: 0 | R120: =SUM(K120:Q120) -> 0 | T120: 4 | U120: 0 | V120: 0 | W120: 0 | X120: 0 | Y120: 0 | Z120: 4 | AA120: =SUM(T120:Z120) -> 8 | AC120: =SUM(I120+R120+AA120) -> 14
A121: 15:30:00 | B121: 3 | C121: 1 | D121: 0 | E121: 0 | F121: 1 | G121: 0 | H121: 2 | I121: =SUM(B121:H121) -> 7 | K121: 0 | L121: 0 | M121: 0 | N121: 0 | O121: 0 | P121: 0 | Q121: 0 | R121: =SUM(K121:Q121) -> 0 | T121: 1 | U121: 0 | V121: 0 | W121: 0 | X121: 0 | Y121: 0 | Z121: 0 | AA121: =SUM(T121:Z121) -> 1 | AC121: =SUM(I121+R121+AA121) -> 8
A122: 15:45:00 | B122: 3 | C122: 0 | D122: 0 | E122: 0 | F122: 0 | G122: 0 | H122: 0 | I122: =SUM(B122:H122) -> 3 | K122: 0 | L122: 0 | M122: 0 | N122: 0 | O122: 0 | P122: 0 | Q122: 0 | R122: =SUM(K122:Q122) -> 0 | T122: 2 | U122: 0 | V122: 0 | W122: 0 | X122: 0 | Y122: 1 | Z122: 4 | AA122: =SUM(T122:Z122) -> 7 | AC122: =SUM(I122+R122+AA122) -> 10
A123: 1 Hr | B123: =SUM(B119:B122) -> 14 | C123: 1 | D123: 0 | E123: 0 | F123: 4 | G123: 2 | H123: 3 | I123: 24 | K123: =SUM(K119:K122) -> 0 | L123: 0 | M123: 0 | N123: 0 | O123: 0 | P123: 0 | Q123: 0 | R123: 0 | T123: =SUM(T119:T122) -> 12 | U123: 0 | V123: 0 | W123: 0 | X123: 0 | Y123: 1 | Z123: 10 | AA123: 23 | AC123: =SUM(AC119:AC122) -> 47
A124: 16:00:00 | B124: 1 | C124: 0 | D124: 0 | E124: 0 | F124: 1 | G124: 0 | H124: 1 | I124: =SUM(B124:H124) -> 3 | K124: 0 | L124: 0 | M124: 0 | N124: 0 | O124: 0 | P124: 0 | Q124: 0 | R124: =SUM(K124:Q124) -> 0 | T124: 0 | U124: 1 | V124: 0 | W124: 0 | X124: 0 | Y124: 0 | Z124: 0 | AA124: =SUM(T124:Z124) -> 1 | AC124: =SUM(I124+R124+AA124) -> 4
A125: 16:15:00 | B125: 1 | C125: 0 | D125: 0 | E125: 0 | F125: 1 | G125: 1 | H125: 5 | I125: =SUM(B125:H125) -> 8 | K125: 0 | L125: 0 | M125: 0 | N125: 0 | O125: 0 | P125: 0 | Q125: 0 | R125: =SUM(K125:Q125) -> 0 | T125: 3 | U125: 0 | V125: 0 | W125: 0 | X125: 0 | Y125: 1 | Z125: 6 | AA125: =SUM(T125:Z125) -> 10 | AC125: =SUM(I125+R125+AA125) -> 18
A126: 16:30:00 | B126: 2 | C126: 0 | D126: 0 | E126: 0 | F126: 1 | G126: 1 | H126: 4 | I126: =SUM(B126:H126) -> 8 | K126: 0 | L126: 0 | M126: 0 | N126: 0 | O126: 0 | P126: 0 | Q126: 0 | R126: =SUM(K126:Q126) -> 0 | T126: 2 | U126: 2 | V126: 0 | W126: 0 | X126: 0 | Y126: 2 | Z126: 5 | AA126: =SUM(T126:Z126) -> 11 | AC126: =SUM(I126+R126+AA126) -> 19
A127: 16:45:00 | B127: 2 | C127: 0 | D127: 0 | E127: 0 | F127: 1 | G127: 1 | H127: 2 | I127: =SUM(B127:H127) -> 6 | K127: 0 | L127: 0 | M127: 0 | N127: 0 | O127: 0 | P127: 0 | Q127: 0 | R127: =SUM(K127:Q127) -> 0 | T127: 4 | U127: 1 | V127: 0 | W127: 0 | X127: 0 | Y127: 1 | Z127: 5 | AA127: =SUM(T127:Z127) -> 11 | AC127: =SUM(I127+R127+AA127) -> 17
A128: 1 Hr | B128: =SUM(B124:B127) -> 6 | C128: 0 | D128: 0 | E128: 0 | F128: 4 | G128: 3 | H128: 12 | I128: 25 | K128: =SUM(K124:K127) -> 0 | L128: 0 | M128: 0 | N128: 0 | O128: 0 | P128: 0 | Q128: 0 | R128: 0 | T128: =SUM(T124:T127) -> 9 | U128: 4 | V128: 0 | W128: 0 | X128: 0 | Y128: 4 | Z128: 16 | AA128: 33 | AC128: =SUM(AC124:AC127) -> 58
A129: 17:00:00 | B129: 3 | C129: 0 | D129: 0 | E129: 0 | F129: 1 | G129: 0 | H129: 7 | I129: =SUM(B129:H129) -> 11 | K129: 0 | L129: 0 | M129: 0 | N129: 0 | O129: 0 | P129: 0 | Q129: 0 | R129: =SUM(K129:Q129) -> 0 | T129: 2 | U129: 0 | V129: 0 | W129: 0 | X129: 0 | Y129: 1 | Z129: 2 | AA129: =SUM(T129:Z129) -> 5 | AC129: =SUM(I129+R129+AA129) -> 16
A130: 17:15:00 | B130: 5 | C130: 2 | D130: 0 | E130: 0 | F130: 1 | G130: 0 | H130: 0 | I130: =SUM(B130:H130) -> 8 | K130: 0 | L130: 0 | M130: 0 | N130: 0 | O130: 0 | P130: 0 | Q130: 0 | R130: =SUM(K130:Q130) -> 0 | T130: 0 | U130: 0 | V130: 0 | W130: 0 | X130: 0 | Y130: 0 | Z130: 3 | AA130: =SUM(T130:Z130) -> 3 | AC130: =SUM(I130+R130+AA130) -> 11
A131: 17:30:00 | B131: 7 | C131: 0 | D131: 0 | E131: 0 | F131: 0 | G131: 0 | H131: 6 | I131: =SUM(B131:H131) -> 13 | K131: 0 | L131: 0 | M131: 0 | N131: 0 | O131: 0 | P131: 0 | Q131: 0 | R131: =SUM(K131:Q131) -> 0 | T131: 2 | U131: 0 | V131: 0 | W131: 0 | X131: 0 | Y131: 2 | Z131: 2 | AA131: =SUM(T131:Z131) -> 6 | AC131: =SUM(I131+R131+AA131) -> 19
A132: 17:45:00 | B132: 2 | C132: 0 | D132: 0 | E132: 0 | F132: 2 | G132: 0 | H132: 2 | I132: =SUM(B132:H132) -> 6 | K132: 0 | L132: 0 | M132: 0 | N132: 0 | O132: 0 | P132: 0 | Q132: 0 | R132: =SUM(K132:Q132) -> 0 | T132: 2 | U132: 0 | V132: 0 | W132: 0 | X132: 0 | Y132: 0 | Z132: 4 | AA132: =SUM(T132:Z132) -> 6 | AC132: =SUM(I132+R132+AA132) -> 12
A133: 1 Hr | B133: =SUM(B129:B132) -> 17 | C133: 2 | D133: 0 | E133: 0 | F133: 4 | G133: 0 | H133: 15 | I133: 38 | K133: =SUM(K129:K132) -> 0 | L133: 0 | M133: 0 | N133: 0 | O133: 0 | P133: 0 | Q133: 0 | R133: 0 | T133: =SUM(T129:T132) -> 6 | U133: 0 | V133: 0 | W133: 0 | X133: 0 | Y133: 3 | Z133: 11 | AA133: 20 | AC133: =SUM(AC129:AC132) -> 58
A134: 18:00:00 | B134: 3 | C134: 0 | D134: 0 | E134: 0 | F134: 0 | G134: 0 | H134: 0 | I134: =SUM(B134:H134) -> 3 | K134: 0 | L134: 0 | M134: 0 | N134: 0 | O134: 0 | P134: 0 | Q134: 0 | R134: =SUM(K134:Q134) -> 0 | T134: 1 | U134: 0 | V134: 0 | W134: 0 | X134: 0 | Y134: 1 | Z134: 2 | AA134: =SUM(T134:Z134) -> 4 | AC134: =SUM(I134+R134+AA134) -> 7
A135: 18:15:00 | B135: 1 | C135: 0 | D135: 0 | E135: 0 | F135: 1 | G135: 0 | H135: 2 | I135: =SUM(B135:H135) -> 4 | K135: 0 | L135: 0 | M135: 0 | N135: 0 | O135: 0 | P135: 0 | Q135: 0 | R135: =SUM(K135:Q135) -> 0 | T135: 1 | U135: 0 | V135: 0 | W135: 0 | X135: 0 | Y135: 2 | Z135: 4 | AA135: =SUM(T135:Z135) -> 7 | AC135: =SUM(I135+R135+AA135) -> 11
A136: 18:30:00 | B136: 2 | C136: 0 | D136: 0 | E136: 0 | F136: 1 | G136: 0 | H136: 1 | I136: =SUM(B136:H136) -> 4 | K136: 0 | L136: 0 | M136: 0 | N136: 0 | O136: 0 | P136: 0 | Q136: 0 | R136: =SUM(K136:Q136) -> 0 | T136: 2 | U136: 0 | V136: 0 | W136: 0 | X136: 0 | Y136: 0 | Z136: 4 | AA136: =SUM(T136:Z136) -> 6 | AC136: =SUM(I136+R136+AA136) -> 10
A137: 18:45:00 | B137: 3 | C137: 0 | D137: 0 | E137: 0 | F137: 1 | G137: 1 | H137: 0 | I137: =SUM(B137:H137) -> 5 | K137: 0 | L137: 0 | M137: 0 | N137: 0 | O137: 0 | P137: 0 | Q137: 0 | R137: =SUM(K137:Q137) -> 0 | T137: 3 | U137: 0 | V137: 0 | W137: 0 | X137: 0 | Y137: 2 | Z137: 2 | AA137: =SUM(T137:Z137) -> 7 | AC137: =SUM(I137+R137+AA137) -> 12
A138: 1 Hr | B138: =SUM(B134:B137) -> 9 | C138: 0 | D138: 0 | E138: 0 | F138: 3 | G138: 1 | H138: 3 | I138: 16 | K138: =SUM(K134:K137) -> 0 | L138: 0 | M138: 0 | N138: 0 | O138: 0 | P138: 0 | Q138: 0 | R138: 0 | T138: =SUM(T134:T137) -> 7 | U138: 0 | V138: 0 | W138: 0 | X138: 0 | Y138: 5 | Z138: 12 | AA138: 24 | AC138: =SUM(AC134:AC137) -> 40
A140: Total | B140: =SUM(B138+B133+B128+B123+B118+B113+B108+B103+B98+B93+B88+B83) -> 135 | C140: 19 | D140: 0 | E140: 0 | F140: 44 | G140: 20 | H140: 79 | I140: 297 | K140: =SUM(K138+K133+K128+K123+K118+K113+K108+K103+K98+K93+K88+K83) -> 0 | L140: 0 | M140: 0 | N140: 0 | O140: 0 | P140: 0 | Q140: 0 | R140: 0 | T140: =SUM(T138+T133+T128+T123+T118+T113+T108+T103+T98+T93+T88+T83) -> 94 | U140: 16 | V140: 0 | W140: 0 | X140: 0 | Y140: 23 | Z140: 112 | AA140: 245 | AC140: =SUM(AC138+AC133+AC128+AC123+AC118+AC113+AC108+AC103+AC98+AC93+AC88+AC83) -> 542
A142: Origin : | B142: Arm C | C142: A409 South Parade (W)
B143: Destination : | D143: Arm A | E143: A409 South Parade (E) | I143: Total | K143: Destination : | M143: Arm B | N143: Fisher's Lane | R143: Total | T143: Destination : | V143: Arm C | W143: A409 South Parade (W) | AA143: Total | AC143: Arm Totals
B144: =$B$10 -> Car | C144: =$C$10 -> LGV | D144: =$D$10 -> OGV1 | E144: =$E$10 -> OGV2 | F144: =$F$10 -> PSV | G144: =$G$10 -> MC | H144: =$H$10 -> PC | K144: =$B$10 -> Car | L144: =$C$10 -> LGV | M144: =$D$10 -> OGV1 | N144: =$E$10 -> OGV2 | O144: =$F$10 -> PSV | P144: =$G$10 -> MC | Q144: =$H$10 -> PC | T144: =$B$10 -> Car | U144: =$C$10 -> LGV | V144: =$D$10 -> OGV1 | W144: =$E$10 -> OGV2 | X144: =$F$10 -> PSV | Y144: =$G$10 -> MC | Z144: =$H$10 -> PC
A146: 07:00:00 | B146: 44 | C146: 13 | D146: 0 | E146: 0 | F146: 3 | G146: 0 | H146: 2 | I146: =SUM(B146:H146) -> 62 | K146: 2 | L146: 1 | M146: 0 | N146: 0 | O146: 0 | P146: 0 | Q146: 1 | R146: =SUM(K146:Q146) -> 4 | T146: 0 | U146: 0 | V146: 0 | W146: 0 | X146: 0 | Y146: 0 | Z146: 0 | AA146: =SUM(T146:Z146) -> 0 | AC146: =SUM(I146+R146+AA146) -> 66
A147: 07:15:00 | B147: 40 | C147: 15 | D147: 1 | E147: 0 | F147: 4 | G147: 3 | H147: 8 | I147: =SUM(B147:H147) -> 71 | K147: 2 | L147: 0 | M147: 0 | N147: 0 | O147: 0 | P147: 0 | Q147: 5 | R147: =SUM(K147:Q147) -> 7 | T147: 0 | U147: 0 | V147: 0 | W147: 0 | X147: 0 | Y147: 0 | Z147: 0 | AA147: =SUM(T147:Z147) -> 0 | AC147: =SUM(I147+R147+AA147) -> 78
A148: 07:30:00 | B148: 56 | C148: 30 | D148: 2 | E148: 0 | F148: 3 | G148: 6 | H148: 5 | I148: =SUM(B148:H148) -> 102 | K148: 3 | L148: 0 | M148: 0 | N148: 0 | O148: 0 | P148: 0 | Q148: 5 | R148: =SUM(K148:Q148) -> 8 | T148: 0 | U148: 0 | V148: 0 | W148: 0 | X148: 0 | Y148: 0 | Z148: 0 | AA148: =SUM(T148:Z148) -> 0 | AC148: =SUM(I148+R148+AA148) -> 110
A149: 07:45:00 | B149: 66 | C149: 25 | D149: 4 | E149: 0 | F149: 3 | G149: 3 | H149: 3 | I149: =SUM(B149:H149) -> 104 | K149: 2 | L149: 0 | M149: 0 | N149: 0 | O149: 0 | P149: 0 | Q149: 2 | R149: =SUM(K149:Q149) -> 4 | T149: 0 | U149: 0 | V149: 0 | W149: 0 | X149: 0 | Y149: 0 | Z149: 0 | AA149: =SUM(T149:Z149) -> 0 | AC149: =SUM(I149+R149+AA149) -> 108
A150: 1 Hr | B150: =SUM(B146:B149) -> 206 | C150: 83 | D150: 7 | E150: 0 | F150: 13 | G150: 12 | H150: 18 | I150: 339 | K150: =SUM(K146:K149) -> 9 | L150: 1 | M150: 0 | N150: 0 | O150: 0 | P150: 0 | Q150: 13 | R150: 23 | T150: =SUM(T146:T149) -> 0 | U150: 0 | V150: 0 | W150: 0 | X150: 0 | Y150: 0 | Z150: 0 | AA150: 0 | AC150: =SUM(AC146:AC149) -> 362
A151: 08:00:00 | B151: 69 | C151: 13 | D151: 2 | E151: 0 | F151: 3 | G151: 4 | H151: 9 | I151: =SUM(B151:H151) -> 100 | K151: 2 | L151: 1 | M151: 0 | N151: 0 | O151: 1 | P151: 0 | Q151: 6 | R151: =SUM(K151:Q151) -> 10 | T151: 0 | U151: 0 | V151: 0 | W151: 0 | X151: 0 | Y151: 0 | Z151: 0 | AA151: =SUM(T151:Z151) -> 0 | AC151: =SUM(I151+R151+AA151) -> 110
A152: 08:15:00 | B152: 68 | C152: 16 | D152: 1 | E152: 0 | F152: 2 | G152: 6 | H152: 9 | I152: =SUM(B152:H152) -> 102 | K152: 2 | L152: 0 | M152: 0 | N152: 0 | O152: 0 | P152: 0 | Q152: 4 | R152: =SUM(K152:Q152) -> 6 | T152: 1 | U152: 0 | V152: 0 | W152: 0 | X152: 0 | Y152: 0 | Z152: 0 | AA152: =SUM(T152:Z152) -> 1 | AC152: =SUM(I152+R152+AA152) -> 109
A153: 08:30:00 | B153: 78 | C153: 12 | D153: 3 | E153: 0 | F153: 3 | G153: 1 | H153: 6 | I153: =SUM(B153:H153) -> 103 | K153: 5 | L153: 1 | M153: 0 | N153: 0 | O153: 0 | P153: 1 | Q153: 6 | R153: =SUM(K153:Q153) -> 13 | T153: 1 | U153: 0 | V153: 0 | W153: 0 | X153: 0 | Y153: 0 | Z153: 0 | AA153: =SUM(T153:Z153) -> 1 | AC153: =SUM(I153+R153+AA153) -> 117
A154: 08:45:00 | B154: 63 | C154: 14 | D154: 4 | E154: 0 | F154: 2 | G154: 4 | H154: 4 | I154: =SUM(B154:H154) -> 91 | K154: 2 | L154: 0 | M154: 0 | N154: 0 | O154: 0 | P154: 0 | Q154: 3 | R154: =SUM(K154:Q154) -> 5 | T154: 0 | U154: 0 | V154: 0 | W154: 0 | X154: 0 | Y154: 0 | Z154: 0 | AA154: =SUM(T154:Z154) -> 0 | AC154: =SUM(I154+R154+AA154) -> 96
A155: 1 Hr | B155: =SUM(B151:B154) -> 278 | C155: 55 | D155: 10 | E155: 0 | F155: 10 | G155: 15 | H155: 28 | I155: 396 | K155: =SUM(K151:K154) -> 11 | L155: 2 | M155: 0 | N155: 0 | O155: 1 | P155: 1 | Q155: 19 | R155: 34 | T155: =SUM(T151:T154) -> 2 | U155: 0 | V155: 0 | W155: 0 | X155: 0 | Y155: 0 | Z155: 0 | AA155: 2 | AC155: =SUM(AC151:AC154) -> 432
A156: 09:00:00 | B156: 59 | C156: 12 | D156: 5 | E156: 0 | F156: 4 | G156: 2 | H156: 2 | I156: =SUM(B156:H156) -> 84 | K156: 1 | L156: 1 | M156: 0 | N156: 0 | O156: 0 | P156: 0 | Q156: 1 | R156: =SUM(K156:Q156) -> 3 | T156: 1 | U156: 0 | V156: 0 | W156: 0 | X156: 0 | Y156: 0 | Z156: 0 | AA156: =SUM(T156:Z156) -> 1 | AC156: =SUM(I156+R156+AA156) -> 88
A157: 09:15:00 | B157: 60 | C157: 13 | D157: 1 | E157: 0 | F157: 2 | G157: 1 | H157: 4 | I157: =SUM(B157:H157) -> 81 | K157: 2 | L157: 0 | M157: 0 | N157: 0 | O157: 0 | P157: 0 | Q157: 4 | R157: =SUM(K157:Q157) -> 6 | T157: 0 | U157: 0 | V157: 0 | W157: 0 | X157: 0 | Y157: 0 | Z157: 0 | AA157: =SUM(T157:Z157) -> 0 | AC157: =SUM(I157+R157+AA157) -> 87
A158: 09:30:00 | B158: 51 | C158: 25 | D158: 1 | E158: 0 | F158: 3 | G158: 4 | H158: 4 | I158: =SUM(B158:H158) -> 88 | K158: 0 | L158: 0 | M158: 0 | N158: 0 | O158: 0 | P158: 1 | Q158: 5 | R158: =SUM(K158:Q158) -> 6 | T158: 0 | U158: 1 | V158: 0 | W158: 0 | X158: 0 | Y158: 0 | Z158: 0 | AA158: =SUM(T158:Z158) -> 1 | AC158: =SUM(I158+R158+AA158) -> 95
A159: 09:45:00 | B159: 61 | C159: 22 | D159: 1 | E159: 0 | F159: 2 | G159: 1 | H159: 3 | I159: =SUM(B159:H159) -> 90 | K159: 3 | L159: 0 | M159: 0 | N159: 0 | O159: 0 | P159: 0 | Q159: 2 | R159: =SUM(K159:Q159) -> 5 | T159: 0 | U159: 0 | V159: 0 | W159: 0 | X159: 0 | Y159: 0 | Z159: 0 | AA159: =SUM(T159:Z159) -> 0 | AC159: =SUM(I159+R159+AA159) -> 95
A160: 1 Hr | B160: =SUM(B156:B159) -> 231 | C160: 72 | D160: 8 | E160: 0 | F160: 11 | G160: 8 | H160: 13 | I160: 343 | K160: =SUM(K156:K159) -> 6 | L160: 1 | M160: 0 | N160: 0 | O160: 0 | P160: 1 | Q160: 12 | R160: 20 | T160: =SUM(T156:T159) -> 1 | U160: 1 | V160: 0 | W160: 0 | X160: 0 | Y160: 0 | Z160: 0 | AA160: 2 | AC160: =SUM(AC156:AC159) -> 365
A161: 10:00:00 | B161: 61 | C161: 21 | D161: 0 | E161: 0 | F161: 2 | G161: 2 | H161: 1 | I161: =SUM(B161:H161) -> 87 | K161: 3 | L161: 0 | M161: 0 | N161: 0 | O161: 0 | P161: 1 | Q161: 2 | R161: =SUM(K161:Q161) -> 6 | T161: 1 | U161: 0 | V161: 0 | W161: 0 | X161: 0 | Y161: 0 | Z161: 0 | AA161: =SUM(T161:Z161) -> 1 | AC161: =SUM(I161+R161+AA161) -> 94
A162: 10:15:00 | B162: 48 | C162: 8 | D162: 3 | E162: 0 | F162: 3 | G162: 3 | H162: 2 | I162: =SUM(B162:H162) -> 67 | K162: 1 | L162: 0 | M162: 0 | N162: 0 | O162: 0 | P162: 1 | Q162: 3 | R162: =SUM(K162:Q162) -> 5 | T162: 0 | U162: 0 | V162: 0 | W162: 0 | X162: 0 | Y162: 0 | Z162: 0 | AA162: =SUM(T162:Z162) -> 0 | AC162: =SUM(I162+R162+AA162) -> 72
A163: 10:30:00 | B163: 46 | C163: 15 | D163: 1 | E163: 0 | F163: 3 | G163: 1 | H163: 3 | I163: =SUM(B163:H163) -> 69 | K163: 4 | L163: 2 | M163: 0 | N163: 0 | O163: 0 | P163: 0 | Q163: 1 | R163: =SUM(K163:Q163) -> 7 | T163: 0 | U163: 0 | V163: 0 | W163: 0 | X163: 0 | Y163: 0 | Z163: 0 | AA163: =SUM(T163:Z163) -> 0 | AC163: =SUM(I163+R163+AA163) -> 76
A164: 10:45:00 | B164: 61 | C164: 4 | D164: 2 | E164: 0 | F164: 2 | G164: 4 | H164: 0 | I164: =SUM(B164:H164) -> 73 | K164: 1 | L164: 1 | M164: 0 | N164: 0 | O164: 0 | P164: 0 | Q164: 2 | R164: =SUM(K164:Q164) -> 4 | T164: 0 | U164: 0 | V164: 0 | W164: 0 | X164: 0 | Y164: 0 | Z164: 0 | AA164: =SUM(T164:Z164) -> 0 | AC164: =SUM(I164+R164+AA164) -> 77
A165: 1 Hr | B165: =SUM(B161:B164) -> 216 | C165: 48 | D165: 6 | E165: 0 | F165: 10 | G165: 10 | H165: 6 | I165: 296 | K165: =SUM(K161:K164) -> 9 | L165: 3 | M165: 0 | N165: 0 | O165: 0 | P165: 2 | Q165: 8 | R165: 22 | T165: =SUM(T161:T164) -> 1 | U165: 0 | V165: 0 | W165: 0 | X165: 0 | Y165: 0 | Z165: 0 | AA165: 1 | AC165: =SUM(AC161:AC164) -> 319
A166: 11:00:00 | B166: 58 | C166: 12 | D166: 0 | E166: 0 | F166: 3 | G166: 4 | H166: 0 | I166: =SUM(B166:H166) -> 77 | K166: 2 | L166: 0 | M166: 0 | N166: 0 | O166: 0 | P166: 0 | Q166: 1 | R166: =SUM(K166:Q166) -> 3 | T166: 0 | U166: 0 | V166: 0 | W166: 0 | X166: 0 | Y166: 0 | Z166: 0 | AA166: =SUM(T166:Z166) -> 0 | AC166: =SUM(I166+R166+AA166) -> 80
A167: 11:15:00 | B167: 49 | C167: 14 | D167: 0 | E167: 0 | F167: 2 | G167: 5 | H167: 3 | I167: =SUM(B167:H167) -> 73 | K167: 4 | L167: 1 | M167: 0 | N167: 0 | O167: 0 | P167: 0 | Q167: 3 | R167: =SUM(K167:Q167) -> 8 | T167: 0 | U167: 1 | V167: 0 | W167: 0 | X167: 0 | Y167: 0 | Z167: 0 | AA167: =SUM(T167:Z167) -> 1 | AC167: =SUM(I167+R167+AA167) -> 82
A168: 11:30:00 | B168: 50 | C168: 21 | D168: 0 | E168: 0 | F168: 2 | G168: 5 | H168: 3 | I168: =SUM(B168:H168) -> 81 | K168: 2 | L168: 2 | M168: 0 | N168: 0 | O168: 0 | P168: 0 | Q168: 1 | R168: =SUM(K168:Q168) -> 5 | T168: 0 | U168: 0 | V168: 0 | W168: 0 | X168: 0 | Y168: 0 | Z168: 0 | AA168: =SUM(T168:Z168) -> 0 | AC168: =SUM(I168+R168+AA168) -> 86
A169: 11:45:00 | B169: 46 | C169: 11 | D169: 3 | E169: 0 | F169: 2 | G169: 4 | H169: 1 | I169: =SUM(B169:H169) -> 67 | K169: 6 | L169: 0 | M169: 0 | N169: 0 | O169: 0 | P169: 3 | Q169: 1 | R169: =SUM(K169:Q169) -> 10 | T169: 1 | U169: 0 | V169: 0 | W169: 0 | X169: 0 | Y169: 0 | Z169: 0 | AA169: =SUM(T169:Z169) -> 1 | AC169: =SUM(I169+R169+AA169) -> 78
A170: 1 Hr | B170: =SUM(B166:B169) -> 203 | C170: 58 | D170: 3 | E170: 0 | F170: 9 | G170: 18 | H170: 7 | I170: 298 | K170: =SUM(K166:K169) -> 14 | L170: 3 | M170: 0 | N170: 0 | O170: 0 | P170: 3 | Q170: 6 | R170: 26 | T170: =SUM(T166:T169) -> 1 | U170: 1 | V170: 0 | W170: 0 | X170: 0 | Y170: 0 | Z170: 0 | AA170: 2 | AC170: =SUM(AC166:AC169) -> 326
A171: 12:00:00 | B171: 47 | C171: 16 | D171: 2 | E171: 0 | F171: 3 | G171: 1 | H171: 2 | I171: =SUM(B171:H171) -> 71 | K171: 1 | L171: 1 | M171: 0 | N171: 0 | O171: 0 | P171: 0 | Q171: 2 | R171: =SUM(K171:Q171) -> 4 | T171: 0 | U171: 0 | V171: 0 | W171: 0 | X171: 0 | Y171: 0 | Z171: 0 | AA171: =SUM(T171:Z171) -> 0 | AC171: =SUM(I171+R171+AA171) -> 75
A172: 12:15:00 | B172: 53 | C172: 10 | D172: 1 | E172: 0 | F172: 2 | G172: 2 | H172: 3 | I172: =SUM(B172:H172) -> 71 | K172: 2 | L172: 0 | M172: 0 | N172: 0 | O172: 0 | P172: 0 | Q172: 3 | R172: =SUM(K172:Q172) -> 5 | T172: 0 | U172: 0 | V172: 0 | W172: 0 | X172: 0 | Y172: 0 | Z172: 0 | AA172: =SUM(T172:Z172) -> 0 | AC172: =SUM(I172+R172+AA172) -> 76
A173: 12:30:00 | B173: 51 | C173: 7 | D173: 2 | E173: 0 | F173: 2 | G173: 4 | H173: 2 | I173: =SUM(B173:H173) -> 68 | K173: 2 | L173: 0 | M173: 0 | N173: 0 | O173: 0 | P173: 1 | Q173: 0 | R173: =SUM(K173:Q173) -> 3 | T173: 0 | U173: 0 | V173: 0 | W173: 0 | X173: 0 | Y173: 0 | Z173: 0 | AA173: =SUM(T173:Z173) -> 0 | AC173: =SUM(I173+R173+AA173) -> 71
A174: 12:45:00 | B174: 52 | C174: 11 | D174: 0 | E174: 0 | F174: 3 | G174: 4 | H174: 1 | I174: =SUM(B174:H174) -> 71 | K174: 6 | L174: 0 | M174: 0 | N174: 0 | O174: 0 | P174: 1 | Q174: 1 | R174: =SUM(K174:Q174) -> 8 | T174: 0 | U174: 0 | V174: 0 | W174: 0 | X174: 0 | Y174: 0 | Z174: 0 | AA174: =SUM(T174:Z174) -> 0 | AC174: =SUM(I174+R174+AA174) -> 79
A175: 1 Hr | B175: =SUM(B171:B174) -> 203 | C175: 44 | D175: 5 | E175: 0 | F175: 10 | G175: 11 | H175: 8 | I175: 281 | K175: =SUM(K171:K174) -> 11 | L175: 1 | M175: 0 | N175: 0 | O175: 0 | P175: 2 | Q175: 6 | R175: 20 | T175: =SUM(T171:T174) -> 0 | U175: 0 | V175: 0 | W175: 0 | X175: 0 | Y175: 0 | Z175: 0 | AA175: 0 | AC175: =SUM(AC171:AC174) -> 301
A176: 13:00:00 | B176: 57 | C176: 12 | D176: 1 | E176: 0 | F176: 3 | G176: 2 | H176: 0 | I176: =SUM(B176:H176) -> 75 | K176: 2 | L176: 0 | M176: 0 | N176: 0 | O176: 0 | P176: 1 | Q176: 5 | R176: =SUM(K176:Q176) -> 8 | T176: 0 | U176: 0 | V176: 0 | W176: 0 | X176: 0 | Y176: 0 | Z176: 0 | AA176: =SUM(T176:Z176) -> 0 | AC176: =SUM(I176+R176+AA176) -> 83
A177: 13:15:00 | B177: 43 | C177: 8 | D177: 1 | E177: 0 | F177: 3 | G177: 9 | H177: 2 | I177: =SUM(B177:H177) -> 66 | K177: 4 | L177: 0 | M177: 0 | N177: 0 | O177: 0 | P177: 1 | Q177: 1 | R177: =SUM(K177:Q177) -> 6 | T177: 1 | U177: 0 | V177: 0 | W177: 0 | X177: 0 | Y177: 0 | Z177: 0 | AA177: =SUM(T177:Z177) -> 1 | AC177: =SUM(I177+R177+AA177) -> 73
A178: 13:30:00 | B178: 40 | C178: 5 | D178: 1 | E178: 0 | F178: 2 | G178: 4 | H178: 0 | I178: =SUM(B178:H178) -> 52 | K178: 2 | L178: 0 | M178: 0 | N178: 0 | O178: 0 | P178: 0 | Q178: 0 | R178: =SUM(K178:Q178) -> 2 | T178: 0 | U178: 0 | V178: 0 | W178: 0 | X178: 0 | Y178: 0 | Z178: 0 | AA178: =SUM(T178:Z178) -> 0 | AC178: =SUM(I178+R178+AA178) -> 54
A179: 13:45:00 | B179: 43 | C179: 11 | D179: 0 | E179: 0 | F179: 3 | G179: 3 | H179: 3 | I179: =SUM(B179:H179) -> 63 | K179: 1 | L179: 0 | M179: 0 | N179: 0 | O179: 0 | P179: 0 | Q179: 4 | R179: =SUM(K179:Q179) -> 5 | T179: 0 | U179: 0 | V179: 0 | W179: 0 | X179: 0 | Y179: 0 | Z179: 0 | AA179: =SUM(T179:Z179) -> 0 | AC179: =SUM(I179+R179+AA179) -> 68
A180: 1 Hr | B180: =SUM(B176:B179) -> 183 | C180: 36 | D180: 3 | E180: 0 | F180: 11 | G180: 18 | H180: 5 | I180: 256 | K180: =SUM(K176:K179) -> 9 | L180: 0 | M180: 0 | N180: 0 | O180: 0 | P180: 2 | Q180: 10 | R180: 21 | T180: =SUM(T176:T179) -> 1 | U180: 0 | V180: 0 | W180: 0 | X180: 0 | Y180: 0 | Z180: 0 | AA180: 1 | AC180: =SUM(AC176:AC179) -> 278
A181: 14:00:00 | B181: 39 | C181: 6 | D181: 2 | E181: 0 | F181: 3 | G181: 2 | H181: 0 | I181: =SUM(B181:H181) -> 52 | K181: 0 | L181: 1 | M181: 0 | N181: 0 | O181: 0 | P181: 0 | Q181: 4 | R181: =SUM(K181:Q181) -> 5 | T181: 0 | U181: 0 | V181: 0 | W181: 0 | X181: 0 | Y181: 0 | Z181: 0 | AA181: =SUM(T181:Z181) -> 0 | AC181: =SUM(I181+R181+AA181) -> 57
A182: 14:15:00 | B182: 55 | C182: 8 | D182: 1 | E182: 0 | F182: 2 | G182: 4 | H182: 1 | I182: =SUM(B182:H182) -> 71 | K182: 1 | L182: 0 | M182: 0 | N182: 0 | O182: 0 | P182: 4 | Q182: 0 | R182: =SUM(K182:Q182) -> 5 | T182: 1 | U182: 0 | V182: 0 | W182: 0 | X182: 0 | Y182: 0 | Z182: 0 | AA182: =SUM(T182:Z182) -> 1 | AC182: =SUM(I182+R182+AA182) -> 77
A183: 14:30:00 | B183: 44 | C183: 4 | D183: 1 | E183: 0 | F183: 4 | G183: 10 | H183: 1 | I183: =SUM(B183:H183) -> 64 | K183: 4 | L183: 1 | M183: 0 | N183: 0 | O183: 0 | P183: 1 | Q183: 4 | R183: =SUM(K183:Q183) -> 10 | T183: 0 | U183: 0 | V183: 0 | W183: 0 | X183: 0 | Y183: 0 | Z183: 0 | AA183: =SUM(T183:Z183) -> 0 | AC183: =SUM(I183+R183+AA183) -> 74
A184: 14:45:00 | B184: 52 | C184: 8 | D184: 2 | E184: 0 | F184: 3 | G184: 2 | H184: 7 | I184: =SUM(B184:H184) -> 74 | K184: 1 | L184: 1 | M184: 0 | N184: 0 | O184: 0 | P184: 2 | Q184: 4 | R184: =SUM(K184:Q184) -> 8 | T184: 0 | U184: 0 | V184: 0 | W184: 0 | X184: 0 | Y184: 0 | Z184: 0 | AA184: =SUM(T184:Z184) -> 0 | AC184: =SUM(I184+R184+AA184) -> 82
A185: 1 Hr | B185: =SUM(B181:B184) -> 190 | C185: 26 | D185: 6 | E185: 0 | F185: 12 | G185: 18 | H185: 9 | I185: 261 | K185: =SUM(K181:K184) -> 6 | L185: 3 | M185: 0 | N185: 0 | O185: 0 | P185: 7 | Q185: 12 | R185: 28 | T185: =SUM(T181:T184) -> 1 | U185: 0 | V185: 0 | W185: 0 | X185: 0 | Y185: 0 | Z185: 0 | AA185: 1 | AC185: =SUM(AC181:AC184) -> 290
A186: 15:00:00 | B186: 62 | C186: 5 | D186: 0 | E186: 0 | F186: 2 | G186: 7 | H186: 1 | I186: =SUM(B186:H186) -> 77 | K186: 2 | L186: 0 | M186: 0 | N186: 0 | O186: 0 | P186: 0 | Q186: 5 | R186: =SUM(K186:Q186) -> 7 | T186: 0 | U186: 0 | V186: 0 | W186: 0 | X186: 0 | Y186: 0 | Z186: 0 | AA186: =SUM(T186:Z186) -> 0 | AC186: =SUM(I186+R186+AA186) -> 84
A187: 15:15:00 | B187: 49 | C187: 7 | D187: 1 | E187: 0 | F187: 2 | G187: 5 | H187: 1 | I187: =SUM(B187:H187) -> 65 | K187: 6 | L187: 1 | M187: 1 | N187: 0 | O187: 0 | P187: 0 | Q187: 3 | R187: =SUM(K187:Q187) -> 11 | T187: 1 | U187: 0 | V187: 0 | W187: 0 | X187: 0 | Y187: 0 | Z187: 0 | AA187: =SUM(T187:Z187) -> 1 | AC187: =SUM(I187+R187+AA187) -> 77
A188: 15:30:00 | B188: 48 | C188: 5 | D188: 0 | E188: 0 | F188: 3 | G188: 3 | H188: 2 | I188: =SUM(B188:H188) -> 61 | K188: 4 | L188: 1 | M188: 0 | N188: 0 | O188: 0 | P188: 1 | Q188: 3 | R188: =SUM(K188:Q188) -> 9 | T188: 0 | U188: 0 | V188: 0 | W188: 0 | X188: 0 | Y188: 0 | Z188: 0 | AA188: =SUM(T188:Z188) -> 0 | AC188: =SUM(I188+R188+AA188) -> 70
A189: 15:45:00 | B189: 44 | C189: 5 | D189: 0 | E189: 0 | F189: 3 | G189: 1 | H189: 3 | I189: =SUM(B189:H189) -> 56 | K189: 2 | L189: 0 | M189: 0 | N189: 0 | O189: 0 | P189: 0 | Q189: 2 | R189: =SUM(K189:Q189) -> 4 | T189: 0 | U189: 0 | V189: 0 | W189: 0 | X189: 0 | Y189: 0 | Z189: 0 | AA189: =SUM(T189:Z189) -> 0 | AC189: =SUM(I189+R189+AA189) -> 60
A190: 1 Hr | B190: =SUM(B186:B189) -> 203 | C190: 22 | D190: 1 | E190: 0 | F190: 10 | G190: 16 | H190: 7 | I190: 259 | K190: =SUM(K186:K189) -> 14 | L190: 2 | M190: 1 | N190: 0 | O190: 0 | P190: 1 | Q190: 13 | R190: 31 | T190: =SUM(T186:T189) -> 1 | U190: 0 | V190: 0 | W190: 0 | X190: 0 | Y190: 0 | Z190: 0 | AA190: 1 | AC190: =SUM(AC186:AC189) -> 291
A191: 16:00:00 | B191: 47 | C191: 8 | D191: 2 | E191: 0 | F191: 2 | G191: 4 | H191: 5 | I191: =SUM(B191:H191) -> 68 | K191: 3 | L191: 1 | M191: 0 | N191: 0 | O191: 0 | P191: 0 | Q191: 4 | R191: =SUM(K191:Q191) -> 8 | T191: 1 | U191: 0 | V191: 0 | W191: 0 | X191: 0 | Y191: 0 | Z191: 0 | AA191: =SUM(T191:Z191) -> 1 | AC191: =SUM(I191+R191+AA191) -> 77
A192: 16:15:00 | B192: 48 | C192: 7 | D192: 0 | E192: 0 | F192: 3 | G192: 1 | H192: 0 | I192: =SUM(B192:H192) -> 59 | K192: 4 | L192: 0 | M192: 1 | N192: 0 | O192: 0 | P192: 0 | Q192: 5 | R192: =SUM(K192:Q192) -> 10 | T192: 0 | U192: 0 | V192: 0 | W192: 0 | X192: 0 | Y192: 0 | Z192: 0 | AA192: =SUM(T192:Z192) -> 0 | AC192: =SUM(I192+R192+AA192) -> 69
A193: 16:30:00 | B193: 53 | C193: 5 | D193: 0 | E193: 0 | F193: 2 | G193: 2 | H193: 2 | I193: =SUM(B193:H193) -> 64 | K193: 2 | L193: 0 | M193: 0 | N193: 0 | O193: 0 | P193: 3 | Q193: 3 | R193: =SUM(K193:Q193) -> 8 | T193: 0 | U193: 0 | V193: 0 | W193: 0 | X193: 0 | Y193: 0 | Z193: 0 | AA193: =SUM(T193:Z193) -> 0 | AC193: =SUM(I193+R193+AA193) -> 72
A194: 16:45:00 | B194: 45 | C194: 4 | D194: 1 | E194: 0 | F194: 3 | G194: 3 | H194: 3 | I194: =SUM(B194:H194) -> 59 | K194: 7 | L194: 0 | M194: 0 | N194: 0 | O194: 0 | P194: 2 | Q194: 5 | R194: =SUM(K194:Q194) -> 14 | T194: 0 | U194: 0 | V194: 0 | W194: 0 | X194: 0 | Y194: 0 | Z194: 0 | AA194: =SUM(T194:Z194) -> 0 | AC194: =SUM(I194+R194+AA194) -> 73
A195: 1 Hr | B195: =SUM(B191:B194) -> 193 | C195: 24 | D195: 3 | E195: 0 | F195: 10 | G195: 10 | H195: 10 | I195: 250 | K195: =SUM(K191:K194) -> 16 | L195: 1 | M195: 1 | N195: 0 | O195: 0 | P195: 5 | Q195: 17 | R195: 40 | T195: =SUM(T191:T194) -> 1 | U195: 0 | V195: 0 | W195: 0 | X195: 0 | Y195: 0 | Z195: 0 | AA195: 1 | AC195: =SUM(AC191:AC194) -> 291
A196: 17:00:00 | B196: 59 | C196: 6 | D196: 0 | E196: 0 | F196: 2 | G196: 1 | H196: 5 | I196: =SUM(B196:H196) -> 73 | K196: 8 | L196: 0 | M196: 0 | N196: 0 | O196: 0 | P196: 1 | Q196: 2 | R196: =SUM(K196:Q196) -> 11 | T196: 1 | U196: 0 | V196: 0 | W196: 0 | X196: 0 | Y196: 0 | Z196: 0 | AA196: =SUM(T196:Z196) -> 1 | AC196: =SUM(I196+R196+AA196) -> 85
A197: 17:15:00 | B197: 57 | C197: 4 | D197: 1 | E197: 0 | F197: 3 | G197: 6 | H197: 1 | I197: =SUM(B197:H197) -> 72 | K197: 3 | L197: 0 | M197: 0 | N197: 0 | O197: 0 | P197: 0 | Q197: 3 | R197: =SUM(K197:Q197) -> 6 | T197: 0 | U197: 0 | V197: 0 | W197: 0 | X197: 0 | Y197: 0 | Z197: 0 | AA197: =SUM(T197:Z197) -> 0 | AC197: =SUM(I197+R197+AA197) -> 78
A198: 17:30:00 | B198: 44 | C198: 3 | D198: 0 | E198: 0 | F198: 2 | G198: 5 | H198: 8 | I198: =SUM(B198:H198) -> 62 | K198: 1 | L198: 0 | M198: 0 | N198: 0 | O198: 0 | P198: 0 | Q198: 2 | R198: =SUM(K198:Q198) -> 3 | T198: 0 | U198: 0 | V198: 0 | W198: 0 | X198: 0 | Y198: 1 | Z198: 0 | AA198: =SUM(T198:Z198) -> 1 | AC198: =SUM(I198+R198+AA198) -> 66
A199: 17:45:00 | B199: 59 | C199: 3 | D199: 0 | E199: 0 | F199: 3 | G199: 2 | H199: 5 | I199: =SUM(B199:H199) -> 72 | K199: 7 | L199: 1 | M199: 0 | N199: 0 | O199: 0 | P199: 1 | Q199: 5 | R199: =SUM(K199:Q199) -> 14 | T199: 1 | U199: 0 | V199: 0 | W199: 0 | X199: 0 | Y199: 0 | Z199: 0 | AA199: =SUM(T199:Z199) -> 1 | AC199: =SUM(I199+R199+AA199) -> 87
A200: 1 Hr | B200: =SUM(B196:B199) -> 219 | C200: 16 | D200: 1 | E200: 0 | F200: 10 | G200: 14 | H200: 19 | I200: 279 | K200: =SUM(K196:K199) -> 19 | L200: 1 | M200: 0 | N200: 0 | O200: 0 | P200: 2 | Q200: 12 | R200: 34 | T200: =SUM(T196:T199) -> 2 | U200: 0 | V200: 0 | W200: 0 | X200: 0 | Y200: 1 | Z200: 0 | AA200: 3 | AC200: =SUM(AC196:AC199) -> 316
A201: 18:00:00 | B201: 41 | C201: 1 | D201: 0 | E201: 0 | F201: 2 | G201: 3 | H201: 7 | I201: =SUM(B201:H201) -> 54 | K201: 0 | L201: 0 | M201: 0 | N201: 0 | O201: 0 | P201: 2 | Q201: 2 | R201: =SUM(K201:Q201) -> 4 | T201: 2 | U201: 0 | V201: 0 | W201: 0 | X201: 0 | Y201: 0 | Z201: 0 | AA201: =SUM(T201:Z201) -> 2 | AC201: =SUM(I201+R201+AA201) -> 60
A202: 18:15:00 | B202: 61 | C202: 1 | D202: 0 | E202: 0 | F202: 2 | G202: 5 | H202: 2 | I202: =SUM(B202:H202) -> 71 | K202: 1 | L202: 0 | M202: 0 | N202: 0 | O202: 0 | P202: 0 | Q202: 2 | R202: =SUM(K202:Q202) -> 3 | T202: 1 | U202: 0 | V202: 0 | W202: 0 | X202: 0 | Y202: 0 | Z202: 0 | AA202: =SUM(T202:Z202) -> 1 | AC202: =SUM(I202+R202+AA202) -> 75
A203: 18:30:00 | B203: 52 | C203: 3 | D203: 0 | E203: 0 | F203: 2 | G203: 11 | H203: 1 | I203: =SUM(B203:H203) -> 69 | K203: 1 | L203: 0 | M203: 0 | N203: 0 | O203: 0 | P203: 1 | Q203: 5 | R203: =SUM(K203:Q203) -> 7 | T203: 0 | U203: 0 | V203: 0 | W203: 0 | X203: 0 | Y203: 0 | Z203: 0 | AA203: =SUM(T203:Z203) -> 0 | AC203: =SUM(I203+R203+AA203) -> 76
A204: 18:45:00 | B204: 45 | C204: 5 | D204: 0 | E204: 0 | F204: 3 | G204: 12 | H204: 2 | I204: =SUM(B204:H204) -> 67 | K204: 5 | L204: 1 | M204: 0 | N204: 0 | O204: 0 | P204: 2 | Q204: 3 | R204: =SUM(K204:Q204) -> 11 | T204: 0 | U204: 0 | V204: 0 | W204: 0 | X204: 0 | Y204: 0 | Z204: 0 | AA204: =SUM(T204:Z204) -> 0 | AC204: =SUM(I204+R204+AA204) -> 78
A205: 1 Hr | B205: =SUM(B201:B204) -> 199 | C205: 10 | D205: 0 | E205: 0 | F205: 9 | G205: 31 | H205: 12 | I205: 261 | K205: =SUM(K201:K204) -> 7 | L205: 1 | M205: 0 | N205: 0 | O205: 0 | P205: 5 | Q205: 12 | R205: 25 | T205: =SUM(T201:T204) -> 3 | U205: 0 | V205: 0 | W205: 0 | X205: 0 | Y205: 0 | Z205: 0 | AA205: 3 | AC205: =SUM(AC201:AC204) -> 289
A207: Total | B207: =SUM(B205+B200+B195+B190+B185+B180+B175+B170+B165+B160+B155+B150) -> 2524 | C207: 494 | D207: 53 | E207: 0 | F207: 125 | G207: 181 | H207: 142 | I207: 3519 | K207: =SUM(K205+K200+K195+K190+K185+K180+K175+K170+K165+K160+K155+K150) -> 131 | L207: 19 | M207: 2 | N207: 0 | O207: 1 | P207: 31 | Q207: 140 | R207: 324 | T207: =SUM(T205+T200+T195+T190+T185+T180+T175+T170+T165+T160+T155+T150) -> 14 | U207: 2 | V207: 0 | W207: 0 | X207: 0 | Y207: 1 | Z207: 0 | AA207: 17 | AC207: =SUM(AC205+AC200+AC195+AC190+AC185+AC180+AC175+AC170+AC165+AC160+AC155+AC150) -> 3860
A209: ORIGIN SUMMARY
B210: Origin : | D210: Arm A | E210: A409 South Parade (E) | I210: Total | K210: Origin : | M210: Arm B | N210: Fisher's Lane | R210: Total | T210: Origin : | V210: Arm C | W210: A409 South Parade (W) | AA210: Total | AC210: Origin Totals
B211: =$B$10 -> Car | C211: =$C$10 -> LGV | D211: =$D$10 -> OGV1 | E211: =$E$10 -> OGV2 | F211: =$F$10 -> PSV | G211: =$G$10 -> MC | H211: =$H$10 -> PC | K211: =$B$10 -> Car | L211: =$C$10 -> LGV | M211: =$D$10 -> OGV1 | N211: =$E$10 -> OGV2 | O211: =$F$10 -> PSV | P211: =$G$10 -> MC | Q211: =$H$10 -> PC | T211: =$B$10 -> Car | U211: =$C$10 -> LGV | V211: =$D$10 -> OGV1 | W211: =$E$10 -> OGV2 | X211: =$F$10 -> PSV | Y211: =$G$10 -> MC | Z211: =$H$10 -> PC
A213: 07:00:00 | B213: =SUM(B12+K12+T12) -> 26 | C213: 5 | D213: 0 | E213: 0 | F213: 4 | G213: 0 | H213: 4 | I213: =SUM(B213:H213) -> 39 | K213: =SUM(B79+K79+T79) -> 2 | L213: 0 | M213: 0 | N213: 0 | O213: 1 | P213: 0 | Q213: 0 | R213: =SUM(K213:Q213) -> 3 | T213: =SUM(B146+K146+T146) -> 46 | U213: 14 | V213: 0 | W213: 0 | X213: 3 | Y213: 0 | Z213: 3 | AA213: =SUM(T213:Z213) -> 66 | AC213: =SUM(I213+R213+AA213) -> 108
... 124 more rows
